{"text_format":"1","workbook":"xlsx","n_sheets":2,"sheets":["Экзамен","Вопросы и ответы"],"not_rendered":{"charts":0,"images":1,"macros":1,"external_links":0,"defined_names":3,"comments":0,"pivot_tables":0},"unopened":[],"bounds":{"document_bytes":16777216,"sheet_cells":100000,"rows_first":2000,"rows_last":500,"rows_between":2000,"halvings":0,"cell_chars":16384,"cell_head_chars":4096},"cells_cut":0,"cells_raw":0,"read":"whole","date_system":"1900"}

{"sheet":"Экзамен","index":0,"n_rows":65,"n_cols":5,"rows_kept":65,"cut":false,"hidden":false,"merged":[]}
[null,null,"Если не работает надо включить макросы, потом закрыть файл и открыть снова! 89029564914 В. А. Леонтьев"]
[null,null,"Общие вопросы"]
[null,null,{"$f":"IF(SUM(A5,A11,A17,A23,A29,A35,A41,A47,A53,A59)=0,\"\",IF(SUM(A5,A11,A17,A23,A29,A35,A41,A47,A53,A59)<10,CONCATENATE(\"Ответов  \",SUM(A5,A11,A17,A23,A29,A35,A41,A47,A53,A59)),IF(SUM(A5,A11,A17,A23,A29,A35,A41,A47,A53,A59)=10,CONCATENATE(\"Правильных ответов   \",A65/5,\"                  Неправильных  \",(50-A65)/5))))","v":""}]
[]
[{"$f":"COUNTIF(B6:B10,TRUE)","v":0},"00. 01","75.  Какие помещения относятся к помещениям с повышенной опасностью поражения людей электрическим током?",null,{"$f":"LEFT(C5,FIND(\".\",C5)-1)&\"   \"&LEFT(C11,FIND(\".\",C11)-1)&\"   \"&LEFT(C17,FIND(\".\",C17)-1)&\"   \"&LEFT(C23,FIND(\".\",C23)-1)&\"   \"&LEFT(C29,FIND(\".\",C29)-1)&\"   \"&LEFT(C35,FIND(\".\",C35)-1)&\"   \"&LEFT(C41,FIND(\".\",C41)-1)&\"   \"&LEFT(C47,FIND(\".\",C47)-1)&\"   \"&LEFT(C53,FIND(\".\",C53)-1)&\"   \"&LEFT(C59,FIND(\".\",C59)-1)","v":"75   158   25   166   260   224   311   256   44   162"}]
[{"$f":"IF(B6=TRUE,IF(D6=\"Правильный_ответ\",5,\"Пролетел\"),\"-\")","v":"-"},false,"• Помещения, характеризующиеся наличием металлических, земляных, железобетонных и других токопроводящих полов"]
["-",false,"• Помещения, характеризующиеся наличием сырости или токопроводящей пыли"]
["-",false,"• Помещения, характеризующиеся возможностью одновременного прикосновения человека к металлоконструкциям зданий, имеющим соединение с землей, технологическим аппаратам, механизмам и т.п. с одной стороны, и к металлическим корпусам электрооборудования (открытым проводящим частям) - с другой"]
[{"$f":"IF(B9=TRUE,IF(D9=\"Правильный_ответ\",5,\"Пролетел\"),\"-\")","v":"-"},false,"• Помещения, характеризующиеся наличием высокой температуры_"]
["-",false,"• Любое из перечисленных помещений относится к помещениям с повышенной опасностью ","Правильный_ответ"]
[{"$f":"COUNTIF(B12:B16,TRUE)","v":0},"00. 02","158.  Кем проводится присвоение I группы по электробезопасности?"]
["-",false,"• Присвоение I группы по электробезопасности проводится работником из числа электротехнического персонала, прошедшего проверку знаний в комиссии территориального органа Ростехнадзора"]
["-",false]
["-",false]
["-",false,"• Присвоение I группы по электробезопасности проводится работником из числа электротехнического персонала, имеющего группу III по электробезопасности, назначенным распоряжением руководителя организации_","Правильный_ответ"]
["-",false,"• Присвоение I группы по электробезопасности проводится работником из числа электротехнического персонала, имеющего группу IV по электробезопасности, назначенным распоряжением руководителя организации"]
[{"$f":"COUNTIF(B18:B22,TRUE)","v":0},"00. 03","25.  Кто обязан организовать обучение, проверку знаний, инструктаж персонала в соответствии с требованиями государственных стандартов, настоящих Правил, правил безопасности труда и местных инструкций?"]
["-",false,"• Технический руководитель Потребителя"]
["-",false,"• Руководители подразделений Потребителя"]
["-",false]
["-",false,"• Ответственный за электрохозяйство Потребителя"]
["-",false,"• Руководитель Потребителя","Правильный_ответ"]
[{"$f":"COUNTIF(B24:B28,TRUE)","v":0},"00. 04","166.  Допускается ли, согласно Правилам устройства электроустановок, сооружение встроенных или пристроенных подстанций в спальных корпусах различных учреждений, в школьных и других учебных заведениях?"]
["-",false,"• Не допускается ","Правильный_ответ"]
["-",false,"• Допускается при выполнении в полном объеме санитарных требований по ограничению х уровня шума и вибрации"]
["-",false,"• Допускается без ограничений_"]
["-",false,"• Допускается, если это согласовано с руководством учреждений и учебных заведений"]
["-",false]
[{"$f":"COUNTIF(B30:B34,TRUE)","v":0},"00. 05","260. . Какие рабочие места предусмотрены во время стажировки для оперативного, оперативно- ремонтного персонала?"]
["-",false,"• Свое рабочее место и (или) специально оборудованные полигоны и мастерские"]
["-",false]
["-",false,"• Свое рабочее место и (или) рабочие места оперативного персонала объектов у электроэнергетики такой организации, определенные программой подготовки по новой должности","Правильный_ответ"]
["-",false]
["-",false,"• Рабочее место в своем диспетчерском центре, а также рабочее место диспетчера в полнофункциональном резервном диспетчерском центре (при его наличии)"]
[{"$f":"COUNTIF(B36:B40,TRUE)","v":0},"00. 06","224.  Перечень состояний при которых не оказывается первая помощь в соответствии с приказом Минздрава России от 04.05.2012 N 477н?"]
["-",false]
["-",false]
["-",false,"• Отсутствие сознания, остановка дыхания и кровообращения_"]
["-",false,"• Степень сильного алкогольного опьянения, нарушение координации ","Правильный_ответ"]
["-",false,"• Наружные кровотечения, травмы различных областей тела"]
[{"$f":"COUNTIF(B42:B46,TRUE)","v":0},"00. 07","311.  За что несут персональную ответственность работники, непосредственно обслуживающие электроустановки?"]
["-",false,"• За нарушения в эксплуатации электротехнологического оборудования"]
["-",false,"• За несвоевременное и неудовлетворительное техническое обслуживание электроустановок_"]
["-",false,"• За нарушения в работе, вызванные низким качеством ремонта"]
["-",false,"• За нарушения, происшедшие по их вине, а также за неправильную ликвидацию ими  нарушений в работе электроустановок на обслуживаемом участке ","Правильный_ответ"]
["-",false]
[{"$f":"COUNTIF(B48:B52,TRUE)","v":0},"00. 08","256.  Какие данные должны быть указаны на бирках кабелей в начале и конце линии?"]
["-",false,"• Только номер или наименование линии_"]
["-",false]
["-",false,"• Только марка и напряжение"]
["-",false,"• Марка, напряжение, сечение, номер или наименование линии","Правильный_ответ"]
["-",false,"• Только сечение кабеля и напряжение"]
[{"$f":"COUNTIF(B54:B58,TRUE)","v":0},"00. 09","44.  Что должно быть обеспечено при прокладке проводов и кабелей в трубах, глухих коробах, гибких металлических рукавах и замкнутых каналах?"]
["-",false]
["-",false,"• Защита от атмосферных осадков"]
["-",false]
["-",false,"• Возможность замены проводов и кабелей ","Правильный_ответ"]
["-",false,"• Изоляция труб, глухих коробов, гибких металлических рукавов и замкнутых каналов"]
[{"$f":"COUNTIF(B60:B64,TRUE)","v":0},"00. 10","162.  Что, согласно Правилам устройства электроустановок, называется приемником электрической энергии (электроприемником)?"]
[{"$f":"IF(B60=TRUE,IF(D60=\"Правильный_ответ\",5,\"Пролетел\"),\"-\")","v":"-"},false,"• Подстанция, работающая на определенной территории"]
["-",false,"• Распределительное устройство, предназначенное для обеспечения потребителей х электрической энергией"]
["-",false]
["-",false,"• Аппарат, агрегат и др., предназначенный для преобразования электрической энергии в другой  вид энергии","Правильный_ответ"]
[{"$f":"IF(B64=TRUE,IF(D64=\"Правильный_ответ\",5,\"Пролетел\"),\"-\")","v":"-"},false,"• Электроустановка, предназначенная для обеспечения потребителей электрической энергией"]
[{"$f":"SUMIF(A5:A64,\"=5\",A5:A64)","v":0}]

{"sheet":"Вопросы и ответы","index":1,"n_rows":2043,"n_cols":4,"rows_kept":2043,"cut":false,"hidden":false,"merged":[]}
[null,null,"Билеты с ответами"]
[null,null,"Вставляется 340 вопросов с 5 вариантами ответов (можно меньше ответов, будет выводиться пустая строка).Возможна перенастройка: количества билетов, количества выводимых билетов произведя необходимые исправления в макросах."]
[]
[]
[]
[null,null,"1.  Какие требования предъявляются к командированному персоналу?"]
[null,null,"• Командируемый персонал должен иметь профессиональную подготовку"]
[null,null,"• Командируемый персонал должен иметь удостоверения о проверке знаний правил работы в электроустановках с отметкой о группе по электробезопасности","Правильный_ответ"]
[null,null,"• Командируемый персонал должен быть обучен и аттестован по охране труда и промышленной безопасности, если это необходимо"]
[null,null,"• Командируемый персонал должен пройти предварительное медицинское обследование"]
[]
[null,null,"2.  Что необходимо сделать при обнаружении непригодности средств защиты?"]
[null,null,"• Сдать на внеочередной осмотр и испытания"]
[null,null,"• Поставить в известность руководителя организации"]
[null,null,"• Изъять из эксплуатации, сделать запись в журнале учета и содержания средств защиты об изъятии или в оперативной документации","Правильный_ответ"]
[null,null,"• Внести изменения в Положение о продлении срока эксплуатации СИЗ"]
[]
[null,null,"3.  В каком случае нарушено требование Правил технической эксплуатации электроустановок потребителей?"]
[null,null,"• Кабельные каналы и наземные кабельные лотки ОРУ и ЗРУ должны быть закрыты несгораемыми плитами, а места выхода кабелей из кабельных каналов, лотков, с этажей и переходы между кабельными отсеками должны быть уплотнены огнеупорным материалом"]
[null,null,"• На всех ключах, кнопках и рукоятках управления должны быть надписи, указывающие операцию, для которой они предназначены"]
[null,null,"• Исправность резервных элементов РУ (трансформаторов, выключателей, шин и др.) должна регулярно проверяться включением под напряжение в сроки, установленные местными инструкциями"]
[null,null,"• У дежурного персонала должен быть запас калиброванных плавких вставок. Плавкие вставки  должны соответствовать типу предохранителей. Применение плавких некалиброванных вставок допускается только в исключительных случаях","Правильный_ответ"]
[]
[null,null,"4.  Каким цветом должны быть обозначены шины трехфазного тока?"]
[null,null,"• Шины фазы А - зеленым, фазы В - желтым, фазы С - красным цветом"]
[null,null,"• Шины фазы А - зеленым, фазы В - красным, фазы С - желтым цветом_"]
[null,null,"• Шины фазы А - желтым, фазы В - зеленым, фазы С - красным цветом","Правильный_ответ"]
[null,null,"• Шины фазы А - красным, фазы В - зеленым, фазы С - желтым цветом"]
[]
[null,null,"5.  На какой срок может быть продлен наряд-допуск на производство работ в электроустановках?"]
[null,null,"• 1 раз на срок не более 20 календарных дней со дня продления_"]
[null,null,"• 1 раз на срок не более 30 календарных дней со дня продления"]
[null,null,"• 1 раз на срок не более 15 календарных дней со дня продления","Правильный_ответ"]
[]
[]
[null,null,"6.  Для чего, согласно Правилам устройства электроустановок, предназначено освещение безопасности?"]
[null,null,"• Для продолжения работы при аварийном отключении рабочего освещения","Правильный_ответ"]
[null,null,"• Для освещения территории в нерабочее время"]
[null,null,"• Для установки вдоль границ территорий, охраняемых специальным персоналом"]
[null,null,"• Для обеспечения освещения вне производственных помещений"]
[]
[null,null,"7.  Кто дает разрешение на снятие напряжения при несчастных случаях для освобождения пострадавшего от действия электрического тока?"]
[null,null,"• Разрешение дает оперативный персонал энергообъекта_"]
[null,null,"• Разрешение дает вышестоящий оперативный персонал"]
[null,null,"• Разрешение дает административно-технический персонал"]
[null,null,"• Предварительного разрешения оперативного персонала не требуется. Напряжение должно быть снято немедленно","Правильный_ответ"]
[]
[null,null,"8.  Что является определением термина «Силовая электрическая цепь»?"]
[null,null,"• Электрическая цепь, содержащая элементы, функциональное назначение которых состоит в производстве или передаче основной части электрической энергии, ее распределении, преобразовании в другой вид энергии или в электрическую энергию с другими значениями параметров","Правильный_ответ"]
[null,null,"• Устройство, выполненное в виде шин или проводов с изоляторами и поддерживающими конструкциями, предназначенное для передачи и распределения электрической энергии в пределах электростанции, подстанции или цеха"]
[null,null,"• Комплект элементов, связывающих присоединения электрического распределительного устройства"]
[null,null,"• Электрическая сеть переменного или постоянного тока, предназначенная для передачи и распределения электрической энергии, используемой в цепях управления, автоматики, защиты и сигнализации электростанции (подстанции)"]
[]
[null,null,"9.  Сколько человек должно присутствовать в комиссии по проверке знаний членов комиссий структурных подразделений организации?"]
[null,null,"• Не менее трех человек, в том числе председатель или его заместитель","Правильный_ответ"]
[null,null,"• Не менее четырех человек, в том числе председатель или его заместитель, а также секретарь"]
[null,null,"• Не менее пяти человек"]
[null,null,"• Правилами не оговаривается"]
[]
[null,null,"10. . Как учитывается время, затраченное на проведение противоаварийных и противопожарных тренировок в соответствии с требованиями «Правил работы с персоналом в организациях электроэнергетики Российской Федерации»?"]
[null,null,"• Включается в рабочее время тренирующихся","Правильный_ответ"]
[null,null,"• Учитывается и оплачивается как работа в выходной или не рабочий праздничный день"]
[]
[]
[]
[null,null,"11.  Какие виды инструктажа проводятся с административно-техническим персоналом?"]
[null,null,"• Вводный и целевой (при необходимости) инструктажи по охране труда","Правильный_ответ"]
[null,null,"• Вводный, первичный на рабочем месте, повторный, внеплановый и целевой инструктажи по охране труда, а также инструктаж по пожарной безопасности"]
[null,null,"• Вводный, первичный на рабочем месте, повторный, внеплановый и целевой инструктажи по охране труда"]
[]
[]
[null,null,"12.  Что представляет собой система TN-C-S для электроустановок напряжением до 1 кВ?"]
[null,null,"• Система, в которой нулевой защитный и нулевой рабочий проводники совмещены в одном проводнике на всем ее протяжении"]
[null,null,"• Система, в которой нейтраль источника питания глухо заземлена, а открытые проводящие части электроустановки присоединены к глухозаземленной нейтрали источника посредством нулевых защитных проводников"]
[null,null,"• Система, в которой функции нулевого защитного и нулевого рабочего проводников совмещены в  одном проводнике в какой-то ее части, начиная от источника питания","Правильный_ответ"]
[null,null,"• Система, в которой нулевой защитный и нулевой рабочий проводники разделены на всем ее протяжении"]
[]
[null,null,"13.  Кто проводит стажировку для диспетчерского, оперативного, оперативно-ремонтного и ремонтного персонала?"]
[null,null,"• Проводится под руководством работника, ответственного за стажировку, назначенного  организационно-распорядительным документом","Правильный_ответ"]
[null,null,"• Руководителем организации"]
[null,null,"• Представителем Ростехнадзора"]
[]
[]
[null,null,"14.  Какие обязательные формы работы с персоналом не осуществляются для ремонтного персонала?"]
[null,null,"• Стажировка (включая обучение безопасным методам и приемам выполнения работ)"]
[null,null,"• Подготовка по новой должности (рабочему месту)"]
[null,null,"• Производственный инструктаж"]
[null,null,"• Противоаварийные тренировки ","Правильный_ответ"]
[]
[null,null,"15.  На какое расстояние не допускается приближаться незащищенными от поражения электрическим током частями тела к токоведущим частям, находящихся под напряжением, при выполнении работ методом «в изоляции»?"]
[null,null,"• Менее 100 мм"]
[null,null,"• Менее 150 мм ","Правильный_ответ"]
[null,null,"• Менее 120 мм"]
[]
[]
[null,null,"16.  Какие из перечисленных работников являются ответственными за безопасное ведение работ в электроустановках?"]
[null,null,"• Только выдающий наряд, отдающий распоряжение, утверждающий перечень работ, х выполняемых в порядке текущей эксплуатации"]
[null,null,"• Только ответственный руководитель работ, допускающий, производитель работ, наблюдающий и член бригады"]
[null,null,"• Все перечисленные работники"]
[null,null,"• Все перечисленные работники, а также выдающий разрешение на подготовку рабочего места и  на допуск в случаях, определенных в пункте 5.14 Правил","Правильный_ответ"]
[]
[null,null,"17.  В каких электроустановках могут выполняться работы в порядке текущей эксплуатации?"]
[null,null,"• В электроустановках напряжением до 1000 В ","Правильный_ответ"]
[null,null,"• В электроустановках напряжением до и выше 1000 В"]
[null,null,"• В любых электроустановках"]
[null,null,"• Только в электроустановках напряжением не выше 380 В"]
[]
[null,null,"18.  Какие провода следует применять при наличии масел и эмульсий в местах их прокладки?"]
[null,null,"• Защищенные провода в оболочке из трудносгораемых материалов"]
[null,null,"• Провода с маслостойкой изоляцией ","Правильный_ответ"]
[null,null,"• Провода с резиновой изоляцией в оплетке из хлопчатобумажной или синтетической пряжи"]
[]
[]
[null,null,"19.  Укажите перечень исчерпывающих мероприятий по оказанию первой помощи, (приказ Минздрава России от 04.05.2012 N 477н)."]
[null,null,"• 1) Вызов скорой медицинской помощи, других специальных служб, сотрудники которых обязаны оказывать первую помощь; 2) определение наличия сознания у пострадавшего; 3) восстановление проходимости дыхательных путей и определение признаков жизни у пострадавшего; 4) проведение сердечно-легочной реанимации до появления признаков жизни; 5) осмотр пострадавшего и временная остановка наружного кровотечения; 6) придание пострадавшему оптимального положения тела; 7) передача пострадавшего бригаде скорой медицинской помощи, другим специальным службам, сотрудники которых обязаны оказывать первую помощь"]
[null,null,"• 1)Вызов скорой медицинской помощи, других специальных служб, сотрудники которых обязаны оказывать первую помощь; 2) определение наличия сознания у пострадавшего; 3) восстановление проходимости дыхательных путей и определение признаков жизни у пострадавшего; 4) проведение сердечно-легочной реанимации до появления признаков жизни; 5) осмотр пострадавшего и временная остановка наружного кровотечения; 6) придание пострадавшему оптимального положения тела; 7) передача пострадавшего бригаде скорой медицинской помощи, другим специальным службам, сотрудники которых обязаны оказывать первую помощь"]
[null,null,"• 1) убедиться в отсутствии пульса на сонной артерии; 2) убедиться в отсутствии признаков дыхания; 3) освободить грудную клетку от одежды и расстегнуть поясной ремень; 4) прикрыть двумя пальцами мечевидный отросток; 5) нанести удар кулаком по грудине; 6) проверить пульс, при отсутствии пульса перейти к непрямому массажу сердца"]
[null,null,"• 1) Оценка обстановки и обеспечение безопасных условий для оказания первой помощи; 2) вызов у скорой медицинской помощи, других специальных служб, сотрудники которых обязаны оказывать первую помощь; 3) определение наличия сознания у пострадавшего; 4) восстановление проходимости дыхательных путей и определение признаков жизни у пострадавшего; 5) проведение сердечно-легочной реанимации до появления признаков жизни; 6) поддержание проходимости дыхательных путей; 7) осмотр пострадавшего и временная остановка наружного кровотечения; 8) подробный осмотр пострадавшего в целях выявления признаков травм, отравлений и других состояний, угрожающих его жизни и здоровью, и оказание первой помощи; 9) придание пострадавшему оптимального положения тела; 10) контроль состояния пострадавшего (сознание, дыхание, кровообращение) и оказание психологической поддержки; 11) передача пострадавшего бригаде скорой медицинской помощи, другим специальным службам, сотрудники которых обязаны оказывать первую помощь","Правильный_ответ"]
[]
[null,null,"20. . Что необходимо предпринять при образовании на гравийной засыпке маслоприемников трансформаторов твердых отложений от нефтепродуктов толщиной более 3 мм?"]
[null,null,"• Заменить гравий ","Правильный_ответ"]
[null,null,"• Застелить гравий досками"]
[null,null,"• Засыпать гравий слоем песка"]
[]
[]
[null,null,"21.  Как должны выполняться работы по расчистке трассы воздушной линии электропередачи от деревьев согласно Правилам по охране труда при эксплуатации электроустановок?"]
[null,null,"• Только по распоряжению"]
[null,null,"• Только по плану производства работ"]
[null,null,"• Только по наряду-допуску"]
[null,null,"• По наряду-допуску или распоряжению ","Правильный_ответ"]
[]
[null,null,"22.  В какой срок для организации ознакомления диспетчерского персонала с особенностями функционирования объектов электроэнергетики субъект оперативно-диспетчерского управления должен в письменной форме направить уведомление о необходимости такого ознакомления в организацию, эксплуатирующую такие объекты электроэнергетики, с указанием их перечня?"]
[null,null,"• Не позднее 3 рабочих дней до даты ознакомления ","Правильный_ответ"]
[null,null,"• Не позднее 5 рабочих дней до даты ознакомления"]
[null,null,"• Не позднее 7 рабочих дней до даты ознакомления"]
[null,null,"• Не позднее 10 рабочих дней до даты ознакомления"]
[]
[null,null,"23.  Как определяется величина участка заземляющего устройства, подвергающегося выборочному вскрытию грунта?"]
[null,null,"• Решением руководителя организации"]
[null,null,"• Решением ответственного за электрохозяйство Потребителя"]
[null,null,"• Решением технического руководителя Потребителя ","Правильный_ответ"]
[null,null,"• Величину участка определяет инспектор энергонадзора"]
[]
[null,null,"24.  За что не несет ответственность выдающий наряд, отдающий распоряжение?"]
[null,null,"• За достаточность и правильность указанных в наряде (распоряжении) мер безопасности"]
[null,null,"• За качественный и количественный состав бригады, состоящей из двух работников и более, включая производителя работ"]
[null,null,"• За назначение ответственных за безопасность выполнения работ, за соответствие выполняемой работе групп перечисленных в наряде работников"]
[null,null,"• За проведение целевого инструктажа ответственному руководителю работ (производителю работ, наблюдающему)"]
[null,null,"• За координацию времени и места допускаемых к работам в электроустановках бригад ","Правильный_ответ"]
[null,null,"25.  Кто обязан организовать обучение, проверку знаний, инструктаж персонала в соответствии с требованиями государственных стандартов, настоящих Правил, правил безопасности труда и местных инструкций?"]
[null,null,"• Руководитель Потребителя","Правильный_ответ"]
[null,null,"• Технический руководитель Потребителя"]
[null,null,"• Ответственный за электрохозяйство Потребителя"]
[null,null,"• Руководители подразделений Потребителя"]
[]
[null,null,"26.  Какие предпринимаются действия по поддержанию проходимости дыхательных путей? (приказ Минздрава России от 04.05.2012 N 477н)."]
[null,null,"• 1) До приезда скорой помощи периодически делать «вдох» искусственного дыхания; 2) приложить холод к голове"]
[null,null,"• 1) Придать пострадавшему устойчивое боковое положение; 2) запрокинуть голову с подъемом  подбородка; 3) выдвинуть нижнюю челюсть","Правильный_ответ"]
[null,null,"• 1) Положить пострадавшего на живот; 2) подогнуть колени; 3) вызвать рвоту у пострадавшего"]
[]
[]
[null,null,"27.  Допускается ли в состав бригады, выполняющей работы по наряду, включать работников, имеющих II группу по электробезопасности?"]
[null,null,"• Не допускается"]
[null,null,"• На каждого работника, имеющего группу III, допускается включать двух работников, имеющих группу II"]
[null,null,"• На каждого работника, имеющего группу III, допускается включать одного работника, имеющего  группу II, но не более трех в бригаду","Правильный_ответ"]
[]
[]
[null,null,"28.  Кому проводит целевой инструктаж, предусматривающий указания по безопасному выполнению конкретной работы, выдающий наряд-допуск?"]
[null,null,"• Ответственному руководителю работ или, если ответственный руководитель не  назначается, производителю работ (наблюдающему)","Правильный_ответ"]
[null,null,"• Допускающему, ответственному руководителю работ, производителю работ (наблюдающему)"]
[null,null,"• Производителю работ (наблюдающему) и членам бригады"]
[null,null,"• Ответственному руководителю работ, производителю работ (наблюдающему) и членам бригады"]
[]
[null,null,"29.  Что является определением термина «Защита при косвенном прикосновении»?"]
[null,null,"• Защита от поражения электрическим током при прикосновении к открытым проводящим  частям, оказавшимся под напряжением, при повреждении изоляции","Правильный_ответ"]
[null,null,"• Защита от напряжения, возникающего при стекании тока с заземлителя в землю, между точкой ввода тока в заземлитель и зоной нулевого потенциала"]
[null,null,"• Защита для предотвращения прикосновения ктоковедущим частям, находящимся под напряжением"]
[]
[]
[null,null,"30. . Какой тип опор устанавливается в местах изменения направления трассы воздушной линии электропередачи?"]
[null,null,"• Промежуточные опоры"]
[null,null,"• Анкерные опоры"]
[null,null,"• Угловые опоры ","Правильный_ответ"]
[null,null,"• Концевые опоры"]
[]
[null,null,"31.  Кто должен выполнять уборку помещений распределительных устройств и очистку электрооборудования?"]
[null,null,"• Ремонтный персонал с группой по электробезопасности не ниже IV"]
[null,null,"• Оперативно-ремонтный персонал, обслуживающий данную установку"]
[null,null,"• Обученный персонал с соблюдением правил безопасности ","Правильный_ответ"]
[]
[]
[null,null,"32.  Что является определением термина «Токопровод»?"]
[null,null,"• Комплект элементов, связывающих присоединения электрического распределительного устройства"]
[null,null,"• Устройство, выполненное в виде шин или проводов с изоляторами и поддерживающими  конструкциями, предназначенное для передачи и распределения электрической энергии в пределах электростанции, подстанции или цеха","Правильный_ответ"]
[null,null,"• Электрическая сеть переменного или постоянного тока, предназначенная для передачи и распределения электрической энергии, используемой в цепях управления, автоматики, защиты и сигнализации электростанции (подстанции)"]
[null,null,"• Электрическая цепь, содержащая элементы, функциональное назначение которых состоит в производстве или передаче основной части электрической энергии, ее распределении, преобразовании в другой вид энергии или в электрическую энергию с другими значениями параметров"]
[]
[null,null,"33.  Как обозначаются шины при постоянном токе?"]
[null,null,"• Положительная шина (+) - красным цветом, отрицательная (-) - синим и нулевая рабочая  М - голубым цветом","Правильный_ответ"]
[null,null,"• Положительная шина (+) - синим цветом, отрицательная (-) - красным и нулевая рабочая М - голубым цветом"]
[null,null,"• Положительная шина (+) - зеленым цветом, отрицательная (-) - красным и нулевая рабочая М - голубым цветом"]
[null,null,"• Положительная шина (+) - желтым цветом, отрицательная (-) - зеленым и нулевая рабочая М - голубым цветом"]
[]
[null,null,"34.  У каких Потребителей электрической энергии должно быть организовано оперативное диспетчерское управление электрооборудованием?"]
[null,null,"• У Потребителей, имеющих собственные источники электрической энергии ","Правильный_ответ"]
[null,null,"• У Потребителей, имеющих электроустановки напряжением свыше 1000 В"]
[null,null,"• У всех Потребителей, независимо от вида используемого электрооборудования"]
[]
[]
[null,null,"35.  Какие из перечисленных электрозащитных средств и средств индивидуальной защиты не нумеруются для учета при вводе их в эксплуатацию?"]
[null,null,"• Диэлектрические перчатки, галоши, боты"]
[null,null,"• Изолирующие накладки и колпаки"]
[null,null,"• Лестницы приставные и стремянки изолирующие стеклопластиковые"]
[null,null,"• Каски защитные, диэлектрические ковры, изолирующие подставки, плакаты безопасности,  защитные ограждения, штанги для переноса и выравнивания потенциала","Правильный_ответ"]
[]
[null,null,"36.  В каком из перечисленных случаев допускается заменять предохранители под напряжением и под нагрузкой?"]
[null,null,"• Только при снятии и установке предохранителей во вторичных цепях"]
[null,null,"• Только при снятии и установке предохранителей пробочного типа"]
[null,null,"• Только при снятии и установке предохранителей трансформаторов напряжения"]
[null,null,"• В любом из перечисленных случаев ","Правильный_ответ"]
[]
[null,null,"37.  Каким способом может быть передано разрешение на продление наряда-допуска?"]
[null,null,"• Только по телефону дежурному диспетчеру с записью в оперативном журнале"]
[null,null,"• Только с нарочным допускающему с последующей записью в строке наряда «Отдельные указания»"]
[null,null,"• Только по радио производителю работ с последующей подписью в таблице наряда-допуска «Разрешение на подготовку рабочих мест и на допуск к выполнению работ»"]
[null,null,"• По телефону радио или с нарочным допускающему ответственному руководителю работ,  производителю работ или наблюдающему (в случае если ответственный руководитель работ и производитель работ не назначаются). В этом случае допускающий, ответственный руководитель работ, производитель работ или наблюдающий за своей подписью указывает в наряд - допуске фамилию и инициалы работника, продлившего наряд-допуск","Правильный_ответ"]
[]
[null,null,"38.  Что может быть использовано в качестве естественных заземлителей?"]
[null,null,"• Металлические трубы водопровода, проложенные в земле ","Правильный_ответ"]
[null,null,"• Трубопроводы канализации"]
[null,null,"• Трубопроводы центрального отопления"]
[null,null,"• Все перечисленные здесь трубы и трубопроводы"]
[]
[null,null,"39.  Кем утверждается график очередной проверки знаний в организации?"]
[null,null,"• Председателями комиссий, в которых будет проводиться проверка знаний","Правильный_ответ"]
[null,null,"• Руководителем организации"]
[null,null,"• Инспектор Ростехнадзора"]
[]
[]
[null,null,"40. . На какой максимальной высоте над уровнем пола, согласно Правилам устройства электроустановок, должны устанавливаться светильники, обслуживаемые со стремянок или приставных лестниц?"]
[null,null,"• На высоте не более 3 м до низа светильника"]
[null,null,"• На высоте не более 6 м до узла крепления светильника"]
[null,null,"• На высоте не более 5 м до низа светильника ","Правильный_ответ"]
[null,null,"• На высоте не более 7 м до узла крепления светильника"]
[]
[null,null,"41.  Какая должна быть, как правило, длительность приложения полного испытательного напряжения для изолирующих средств защиты из слоистых диэлектриков?"]
[null,null,"• 1 минута"]
[null,null,"• 2 минуты"]
[null,null,"• 3 минуты"]
[null,null,"• 5 минут ","Правильный_ответ"]
[]
[null,null,"42.  В течение, какого срока должна проводиться стажировка электротехнического персонала на рабочем месте до назначения на самостоятельную работу?"]
[null,null,"• От 1 до 5 смен"]
[null,null,"• От 2 до 4 смен"]
[null,null,"• От 2 до 10 смен"]
[null,null,"• От 2 до 14 смен ","Правильный_ответ"]
[]
[null,null,"43.  Когда возникает необходимость проведения технического освидетельствования электрооборудования?"]
[null,null,"• Техническое освидетельствование проводится с периодичностью не реже одного раза в 5 лет"]
[null,null,"• Техническое освидетельствование проводится по истечении установленного нормативно-  технической документацией срока службы электрооборудования","Правильный_ответ"]
[null,null,"• Необходимость в техническом освидетельствовании электрооборудования определяется в результате осмотра электрооборудования"]
[]
[]
[null,null,"44.  Что должно быть обеспечено при прокладке проводов и кабелей в трубах, глухих коробах, гибких металлических рукавах и замкнутых каналах?"]
[null,null,"• Изоляция труб, глухих коробов, гибких металлических рукавов и замкнутых каналов"]
[null,null,"• Возможность замены проводов и кабелей ","Правильный_ответ"]
[null,null,"• Защита от атмосферных осадков"]
[]
[]
[null,null,"45.  Какой минимальный срок стажировки на каждом рабочем месте?"]
[null,null,"• 7 рабочих дней (смен)"]
[null,null,"• 5 рабочих дней (смен)"]
[null,null,"• 2 рабочих дня (смены) ","Правильный_ответ"]
[null,null,"• 10 рабочих дней (смен)"]
[]
[null,null,"46.  При выполнении каких работ выдающий наряд-допуск имеет право не назначать ответственного руководителя работ?"]
[null,null,"• Под наведенным напряжением"]
[null,null,"• Без снятия напряжения на токоведущих частях с изоляцией человека от земли"]
[null,null,"• В местах пересечения ВЛ с другими ВЛ и транспортными магистралями, в пролетах пересечения проводов в ОРУ"]
[null,null,"• При выполнении работ в РУ напряжением выше 1000 В с одиночной секционированной или  несекционированной системой шин, не имеющей обходной системы шин","Правильный_ответ"]
[]
[null,null,"47.  Допускается ли производителю работ совмещать обязанности допускающего согласно Правилам по охране труда при эксплуатации электроустановок?"]
[null,null,"• Допускается, в этом случае подготовку рабочего места он должен выполнять с одним из  членов бригады, имеющим группу III по электробезопасности","Правильный_ответ"]
[null,null,"• Работы выполнять не допускается"]
[]
[]
[]
[null,null,"48.  Кому разрешается работать единолично в электроустановках напряжением до 1000 В, расположенных в помещениях, кроме особо опасных?"]
[null,null,"• Работнику, имеющему IV группу по электробезопасности"]
[null,null,"• Работнику, имеющему III группу по электробезопасности и право быть производителем работ ","Правильный_ответ"]
[null,null,"• Работнику, имеющему III группу по электробезопасности"]
[null,null,"• Работать единолично не разрешается"]
[]
[null,null,"49.  Укажите последовательность действий по оценке обстановки и обеспечению безопасных условий для оказания первой помощи (приказ Минздрава России от 04.05.2012 N 477н)."]
[null,null,"• 1) Определение угрожающих факторов для жизни и здоровья пострадавшего; 2) устранение угрожающих факторов для жизни и здоровья; 3) вызов скорой медицинской помощи; 4) прекращение действия повреждающих факторов на пострадавшего; 5)  оценка количества пострадавших"]
[null,null,"• 1) Определение угрожающих факторов для собственной жизни и здоровья; 2) определение  угрожающих факторов для жизни и здоровья пострадавшего; 3) устранение угрожающих факторов для жизни и здоровья; 4) прекращение действия повреждающих факторов на пострадавшего; 5) оценка количества пострадавших; 6) извлечение пострадавшего из транспортного средства или других труднодоступных мест; 7) перемещение пострадавшего","Правильный_ответ"]
[null,null,"• 1) Вызов скорой медицинской помощи; 2) других специальных служб, сотрудники которых обязаны оказывать первую помощь в соответствии с федеральным законом или со специальным правилом; 3) устранение угрожающих факторов для жизни и здоровья; 4) прекращение действия повреждающих факторов на пострадавшего; 5) оценка количества пострадавших; 6) извлечение пострадавшего из транспортного средства или других труднодоступных мест"]
[]
[]
[null,null,"50. . Какое минимальное количество независимых взаимно резервирующих источников питания, согласно Правилам устройства электроустановок, должно обеспечивать электроэнергией электроприемники первой категории в нормальных режимах, если перерыв их электроснабжения при нарушении электроснабжения от одного из источников питания может быть допущен лишь на время автоматического восстановления питания?"]
[null,null,"• 2 источника питания ","Правильный_ответ"]
[null,null,"• 3 источника питания"]
[null,null,"• 4 источника питания"]
[null,null,"• 6 источников питания"]
[]
[null,null,"51.  Что является определением термина «Заземлитель»?"]
[null,null,"• Проводящая часть, не являющаяся частью электроустановки"]
[null,null,"• Проводящая часть или совокупность соединенных между собой проводящих частей,  находящихся в электрическом контакте с землей непосредственно или через промежуточную проводящую среду","Правильный_ответ"]
[null,null,"• Сторонняя проводящая часть, находящаяся в электрическом контакте с землей непосредственно или через промежуточную проводящую среду используемая для целей заземления"]
[]
[]
[null,null,"52.  Кто проводит комплексное опробование оборудования перед приемкой в эксплуатацию электроустановок?"]
[null,null,"• Организация, осуществляющая строительство и монтаж энергообъекта"]
[null,null,"• Организация-заказчик ","Правильный_ответ"]
[null,null,"• Организация-подрядчик с привлечением персонала заказчика"]
[]
[]
[null,null,"53.  Для какой категории персонала производственный инструктаж является обязательным?"]
[null,null,"• Диспетчерского, оперативного, оперативно-ремонтного и ремонтного персонала ","Правильный_ответ"]
[null,null,"• Административно-технического персонала"]
[null,null,"• Только для технического персонала"]
[null,null,"• Для всех"]
[]
[null,null,"54.  Как часто должны проводиться осмотр и проверка исправности аварийного освещения?"]
[null,null,"• 1 раз в полгода","Правильный_ответ"]
[null,null,"• 1 раз в год"]
[null,null,"• 1 раз в 2 года"]
[null,null,"• 1 раз в 3 года"]
[]
[null,null,"55.  В течение, какого времени должны храниться наряды, работы по которым полностью закончены?"]
[null,null,"• В течении 30 суток ","Правильный_ответ"]
[null,null,"• В течении 60 суток"]
[null,null,"• В течении 20 суток"]
[null,null,"• В течении 15 суток"]
[]
[null,null,"56.  Как классифицируются помещения в отношении опасности поражения людей электрическим током?"]
[null,null,"• Помещения без повышенной опасности и помещения с повышенной опасностью"]
[null,null,"• Помещения без повышенной опасности, помещения с повышенной опасностью, особо опасные  помещения","Правильный_ответ"]
[null,null,"• Неопасные, опасные и особо опасные помещения"]
[null,null,"• Неопасные, малоопасные, опасные и особо опасные помещения"]
[]
[null,null,"57.  Сколько работников, имеющих II группу по электробезопасности, допускается включать в бригаду? Выберите все правильные варианты ответа."]
[null,null,"• По одному на каждого работника, имеющего III группу по электробезопасности ","Правильный_ответ"]
[null,null,"• Общее число членов бригады, имеющих II группу, не должно превышать трех человек ","Правильный_ответ"]
[null,null,"• Численность работников определяется производителем работ"]
[null,null,"• Численность работников определяется исходя из условий выполнения работ"]
[]
[null,null,"58.  Какие запрещающие плакаты вывешиваются на приводах коммутационных аппаратов во избежание подачи напряжения на рабочее место при проведении ремонта или планового осмотра оборудования?"]
[null,null,"• «Не включать! Работают люди» ","Правильный_ответ"]
[null,null,"• «Не открывать! Работают люди»"]
[null,null,"• «Работа под напряжением! Повторно не включать!»"]
[]
[]
[null,null,"59.  На какой персонал распространяются требования специальной подготовки?"]
[null,null,"• На работников из числа диспетчерского, оперативного и оперативно-ремонтного  персонала","Правильный_ответ"]
[null,null,"• На управленческий персонал и специалистов производственных подразделений"]
[null,null,"• На ремонтный персонал, связанный с техническим обслуживанием, ремонтом, наладкой и испытанием энергоустановок"]
[]
[]
[null,null,"60. . Какие действия оказывающего помощь не относятся к мероприятиям по подробному осмотру пострадавшего в целях выявления признаков травм, отравлений и других состояний, угрожающих его жизни и здоровью, и по оказанию первой помощи в случае выявления указанных состояний (приказ Минздрава России от 04.05.2012 N 477н)?"]
[null,null,"• 1) Осмотр пострадавшего на наличие кровотечений; 2) прекращение воздействия  опасных химических веществ на пострадавшего проведением клистирования; 3) наложение гипсовых повязок при повреждении конечностей; 4) накрыть сухой чистой тканью, поверх ткани на 20-30 мин. приложить холод","Правильный_ответ"]
[null,null,"• 1) Проведение осмотра головы; 2) проведение осмотра шеи; 3) проведение осмотра груди; 4) проведение осмотра спины; 5) проведение осмотра живота и таза; 6) проведение осмотра конечностей; 7) наложение повязок при травмах различных областей тела, в том числе оккпюзионной (герметизирующей) при ранении грудной клетки"]
[null,null,"• 1) Проведение иммобилизации; 2) прекращение воздействия опасных химических веществ на пострадавшего (промывание желудка путем приема воды и вызывания рвоты, удаление с поврежденной поверхности и промывание поврежденной поверхности проточной водой); 3) местное охлаждение при травмах, термических ожогах и иных воздействиях высоких температур или теплового излучения; 4) термоизоляция при отморожениях и других эффектах воздействия низких температур"]
[]
[]
[null,null,"61.  Каким образом в электроустановках ведется учет производства работ по нарядам-допускам и распоряжениям?"]
[null,null,"• В журнале проведения целевого инструктажа"]
[null,null,"• В журнале произвольной формы"]
[null,null,"• В папке действующих нарядов"]
[null,null,"• В журнале учета работ по нарядам - допускам и распоряжениям ","Правильный_ответ"]
[]
[null,null,"62.  Чем должны быть укомплектованы электроустановки?"]
[null,null,"• Защитными средствами, средствами пожаротушения"]
[null,null,"• Средствами пожаротушения, исправным инструментом и средствами оказания первой медицинской помощи"]
[null,null,"• Исправным инструментом"]
[null,null,"• Испытанными защитными средствами, средствами пожаротушения, исправным инструментом и  средствами оказания первой помощи","Правильный_ответ"]
[]
[null,null,"63.  В какие сроки должна проводиться очередная проверка знаний в отношении диспетчерского, оперативного и оперативно-ремонтного персонала, работников из числа административно- технического персонала?"]
[null,null,"• Не реже 1 раза в 4 месяца"]
[null,null,"• Не реже 1 раза в 2 месяца"]
[null,null,"• Не реже 1 раза в 6 месяцев"]
[null,null,"• Не реже 1 раза в 12 месяцев ","Правильный_ответ"]
[]
[null,null,"64.  Кем должен быть утвержден Перечень ответственных механизмов, участвующих в самозапуске?"]
[null,null,"• Руководителем Потребителя"]
[null,null,"• Техническим руководителем Потребителя ","Правильный_ответ"]
[null,null,"• Руководителем подразделения Потребителя, эксплуатирующего оборудование"]
[null,null,"• Руководителем подразделения Потребителя, обслуживающего оборудование"]
[]
[null,null,"65.  Являются ли лакокрасочные покрытия изоляцией, защищающей от поражения электрическим током?"]
[null,null,"• Не являются"]
[null,null,"• Являются"]
[null,null,"• Не являются, за исключением случаев, специально оговоренных техническими условиями на  конкретные изделия","Правильный_ответ"]
[]
[]
[null,null,"66.  Какое значение напряжения должно применяться для испытания основных изолирующих электрозащитных средств, предназначенных для электроустановок напряжением выше 1 до 35 кВ включительно?"]
[null,null,"• Равное 3-кратному линейному, но не ниже 40 кВ ","Правильный_ответ"]
[null,null,"• Равное 3-кратному линейному но не выше 40 кВ"]
[null,null,"• Равное 3-кратному фазному"]
[null,null,"• Равное 2-кратному фазному"]
[]
[null,null,"67.  В каком случае нарушен порядок хранения и выдачи ключей?"]
[null,null,"• Ключи от электроустановок должны быть пронумерованы и храниться в запираемом ящике. Один комплект должен быть запасным"]
[null,null,"• Выдача ключей должна быть заверена подписью работника, ответственного за выдачу и хранение ключей, а также подписью работника, получившего ключи"]
[null,null,"• Ключи от электроустановок должны выдаваться производителю работ при допуске к работам по наряду-допуску от помещений, вводных устройств, щитов, щитков, в которых предстоит работать"]
[null,null,"• Допускается возвращать ключи от электроустановок оперативному персоналу в течение трех  дней после полного окончания работ","Правильный_ответ"]
[]
[null,null,"68.  Кто проводит первичный инструктаж командированному персоналу при проведении работ в электроустановках до 1000 В?"]
[null,null,"• Работник организации - владельца электроустановок из числа административно-технического  персонала, имеющий группу IV","Правильный_ответ"]
[null,null,"• Работник организации - владельца электроустановок из числа электротехнического персонала, имеющий группу IV"]
[null,null,"• Работник организации - владельца электроустановок из числа оперативно-ремонтного персонала, имеющий группу IV"]
[null,null,"• Работник командирующей организации из числа административно-технического персонала, имеющий группу IV"]
[]
[null,null,"69.  Светильники какого минимального класса защиты, согласно Правилам устройства электроустановок, допускается применять (за исключением светильников, обслуживаемых с кранов) в помещениях с повышенной опасностью и особо опасных помещениях при высоте установки светильников общего освещения над полом или площадкой обслуживания менее 2,5 м при условии что цепь защищена устройством защитного отключения?"]
[null,null,"• Класса защиты 0_"]
[null,null,"• Класса защиты 1 ","Правильный_ответ"]
[null,null,"• Класса защиты 2"]
[null,null,"• Класса защиты 3"]
[]
[null,null,"70. . Что, согласно Правилам устройства электроустановок, называется нормальным режимом потребителя электрической энергии?"]
[null,null,"• Режим, при котором обеспечиваются средние значения параметров его работы_"]
[null,null,"• Режим, при котором обеспечиваются заданные значения параметров его работы","Правильный_ответ"]
[null,null,"• Режим, при котором обеспечиваются максимальные значения параметров его работы"]
[null,null,"• Режим, при котором обеспечиваются минимальные значения параметров его работы"]
[]
[null,null,"71.  Каким образом должна быть обеспечена защита от потенциала при работах на проводах, выполняемых с телескопической вышки?"]
[null,null,"• Рабочая площадка вышки должна быть с помощью специальной штанги соединена с  проводом линии гибким медным проводником сечением не менее 10 мм2, а сама вышка заземлена","Правильный_ответ"]
[null,null,"• Рабочая площадка вышки должна быть с помощью специальной штанги соединена с проводом линии гибким медным проводником сечением не менее 12 мм2, а сама вышка заземлена"]
[null,null,"• Рабочая площадка вышки должна быть с помощью специальной штанги соединена с проводом линии гибким медным проводником сечением не менее 16 мм2, а сама вышка заземлена"]
[null,null,"• Рабочая площадка вышки должна быть с помощью специальной штанги соединена с проводом линии гибким медным проводником сечением не менее 20 мм2, а сама вышка заземлена"]
[]
[null,null,"72.  Что является определением термина «Искусственный заземлитель»?"]
[null,null,"• Заземлитель, специально выполняемый для целей заземления ","Правильный_ответ"]
[null,null,"• Преднамеренное электрическое соединение какой-либо точки сети, электроустановки или оборудования с заземляющим устройством"]
[null,null,"• Сторонняя проводящая часть, находящаяся в электрическом контакте с землей непосредственно или через промежуточную проводящую среду используемая для целей заземления"]
[]
[]
[null,null,"73.  При каких условиях допускается параллельная работа трансформаторов?"]
[null,null,"• Соотношение мощностей трансформаторов не более 1:3; коэффициенты трансформации отличаются не более чем на 0,5 %; напряжения короткого замыкания отличаются не более чем на 10%_"]
[null,null,"• Коэффициенты трансформации отличаются не более чем на 0.5 %; напряжения короткого замыкания отличаются не более чем на 10 %: произведена фазировка трансформаторов"]
[null,null,"• Группы соединений обмоток одинаковы; соотношение мощностей трансформаторов не более 1:3; коэффициенты трансформации отличаются не более чем на 0.5 %; напряжения короткого замыкания отличаются не более чем на 10 %"]
[null,null,"• Группы соединений обмоток одинаковы; соотношение мощностей трансформаторов не более  1:3; коэффициенты трансформации отличаются не более чем на 0.5 %; напряжения короткого замыкания отличаются не более чем на 10 %; произведена фазировка трансформаторов","Правильный_ответ"]
[]
[null,null,"74.  Укажите верный перечень исчерпывающих мероприятий по оказанию первой помощи, (приказ Минздрава России от 04.05.2012 N 477н)."]
[null,null,"• 1) Определение угрожающих факторов для жизни и здоровья пострадавшего; 2) устранение угрожающих факторов для жизни и здоровья; 3) вызов скорой медицинской помощи; 4) прекращение действия повреждающих факторов на пострадавшего; 5) оценка количества пострадавших_"]
[null,null,"• 1) Определение угрожающих факторов для собственной жизни и здоровья; 2)  определение угрожающих факторов для жизни и здоровья пострадавшего; 3) устранение угрожающих факторов для жизни и здоровья; 4) прекращение действия повреждающих факторов на пострадавшего; 5) оценка количества пострадавших; 6) извлечение пострадавшего из транспортного средства или других труднодоступных мест; 7) перемещение пострадавшего","Правильный_ответ"]
[null,null,"• 1) Вызов скорой медицинской помощи; 2) других специальных служб, сотрудники которых обязаны оказывать первую помощь в соответствии с федеральным законом или со специальным правилом; 3) устранение угрожающих факторов для жизни и здоровья; 4) прекращение действия повреждающих факторов на пострадавшего; 5) оценка количества пострадавших; 6) извлечение пострадавшего из транспортного средства или других труднодоступных мест"]
[]
[]
[null,null,"75.  Какие помещения относятся к помещениям с повышенной опасностью поражения людей электрическим током?"]
[null,null,"• Помещения, характеризующиеся наличием сырости или токопроводящей пыли"]
[null,null,"• Помещения, характеризующиеся наличием металлических, земляных, железобетонных и других токопроводящих полов"]
[null,null,"• Помещения, характеризующиеся наличием высокой температуры_"]
[null,null,"• Помещения, характеризующиеся возможностью одновременного прикосновения человека к металлоконструкциям зданий, имеющим соединение с землей, технологическим аппаратам, механизмам и т.п. с одной стороны, и к металлическим корпусам электрооборудования (открытым проводящим частям) - с другой"]
[null,null,"• Любое из перечисленных помещений относится к помещениям с повышенной опасностью ","Правильный_ответ"]
[null,null,"76.  На какой срок может быть продлено для работника дублирование, если за отведенное время он не приобрел достаточных производственных навыков?"]
[null,null,"• На срок от 1 до 5 смен"]
[null,null,"• На срок от 2 до 4 смен_"]
[null,null,"• На срок от 2 до 12 смен ","Правильный_ответ"]
[null,null,"• На срок от 2 до 14 смен"]
[null,null,"• На срок от 5 до 15 смен"]
[null,null,"77.  Для проведения проверки знаний руководитель организации должен назначить постоянно действующую комиссию организации в составе не менее:"]
[null,null,"• 5 человек","Правильный_ответ"]
[null,null,"• 3 человек"]
[null,null,"• 7 человек"]
[]
[]
[null,null,"78.  Что является определением термина «Изолированная нейтраль»?"]
[null,null,"• Нейтраль трансформатора или генератора, присоединенная к заземляющему устройству непосредственно"]
[null,null,"• Нейтраль трансформатора или генератора, присоединенная к заземляющему устройству через активные токоограничивающие сопротивления_"]
[null,null,"• Нейтраль трансформатора или генератора, не присоединенная к заземляющему  устройству или присоединенная к нему через большое сопротивление приборов сигнализации, измерения, защиты и других аналогичных им устройств","Правильный_ответ"]
[]
[]
[null,null,"79.  В какой срок лицо, получившее неудовлетворительную оценку по результатам проверки знаний, должно пройти повторную проверку?"]
[null,null,"• Не более 1 месяца ","Правильный_ответ"]
[null,null,"• Не позднее 2 недель_"]
[null,null,"• Вопрос о сроках повторной проверки и о возможности сохранения трудового договора с работником решается руководителем организации"]
[]
[]
[null,null,"80. . Какой тип опор устанавливается на прямых участках трассы воздушной линии электропередачи?"]
[null,null,"• Промежуточные опоры","Правильный_ответ"]
[null,null,"• Анкерные опоры"]
[null,null,"• Угловые опоры"]
[null,null,"• Концевые опоры"]
[]
[null,null,"81.  Кто определяет перечень профессий и рабочих мест, требующих отнесения производственного персонала к группе по электробезопасности I?"]
[null,null,"• Технический руководитель Потребителя"]
[null,null,"• Руководитель организации (обособленного подразделения)","Правильный_ответ"]
[null,null,"• Специалист по охране труда, контролирующий электроустановки"]
[null,null,"• Инспектор по энергетическому надзору"]
[]
[null,null,"82.  В какой цвет должны быть окрашены открыто проложенные заземляющие проводники?"]
[null,null,"• В синий цвет"]
[null,null,"• В зеленый цвет"]
[null,null,"• В черный цвет","Правильный_ответ"]
[null,null,"• В красный цвет"]
[]
[null,null,"83.  Что должно учитываться при выборе вида электропроводки и способа прокладки проводов и кабелей?"]
[null,null,"• Требования представителя Ростехнадзора"]
[null,null,"• Требования электробезопасности и пожарной безопасности ","Правильный_ответ"]
[null,null,"• Экспертное мнение главного энергетика и технолога проектной организации"]
[]
[]
[null,null,"84.  Какое количество членов постоянно действующей комиссии должно присутствовать при проверке знаний филиала, представительства, структурного подразделения организации?"]
[null,null,"• Не менее 2 членов постоянно действующей комиссии по проверке знаний филиала, представительства, структурного подразделения организации"]
[null,null,"• Не менее 3 членов постоянно действующей комиссии по проверке знаний филиала,  представительства, структурного подразделения организации","Правильный_ответ"]
[null,null,"• Не менее 4 членов постоянно действующей комиссии по проверке знаний филиала, представительства, структурного подразделения организации"]
[null,null,"• Не менее 5 членов постоянно действующей комиссии по проверке знаний филиала, представительства, структурного подразделения организации"]
[]
[null,null,"85.  С какой периодичностью руководитель организации должен обеспечивать проведение проверки работоспособности систем и средств противопожарной защиты объекта?"]
[null,null,"• Проверка работоспособности проводится только после ремонта водопроводной сети_"]
[null,null,"• Проверка работоспособности проводится только после подключения новых потребителей к водопроводной сети"]
[null,null,"• Проверка работоспособности проводится не реже 1 раза в квартал ","Правильный_ответ"]
[null,null,"• Проверка работоспособности проводится не реже 1 раза в год"]
[]
[null,null,"86.  Каким, согласно Правилам устройства электроустановок, должно быть сечение РЕ проводников, не входящих в состав кабеля?"]
[null,null,"• Не менее 1,5 мм2 - при наличии механической защиты и 2 мм2 - при ее отсутствии_"]
[null,null,"• Не менее 2,5 мм2- при наличии механической защиты и 4 мм2 - при ее отсутствии","Правильный_ответ"]
[null,null,"• Не менее 4 мм2 - при наличии механической защиты и 6 мм2 - при ее отсутствии"]
[null,null,"• Не менее 7,5 мм2 - при наличии механической защиты и 5,5 мм2 - при ее отсутствии"]
[]
[null,null,"87.  За что несут персональную ответственность работники, осуществляющие ремонтные работы в электроустановках?"]
[null,null,"• За несвоевременное и неудовлетворительное техническое обслуживание электроустановок_"]
[null,null,"• За нарушения, происшедшие по их вине, а также за неправильную ликвидацию ими х нарушений в работе электроустановок на обслуживаемом участке"]
[null,null,"• За нарушения в эксплуатации электротехнологического оборудования"]
[null,null,"• За нарушения в работе, вызванные низким качеством ремонта ","Правильный_ответ"]
[]
[null,null,"88.  Какие работы из перечисленных можно отнести к работам, выполняемым в порядке текущей эксплуатации в электроустановках напряжением до 1000 В?"]
[null,null,"• Снятие и установку электросчетчиков, других приборов и средств измерений","Правильный_ответ"]
[null,null,"• Ремонт пусковой и коммутационной аппаратуры, установленной на щитках"]
[null,null,"• Замену ламп и чистку светильников на высоте более 2,5 м"]
[null,null,"• Любые из перечисленных работ"]
[]
[null,null,"89.  Что входит в обязанности ответственного руководителя при проведении работ в электроустановках?"]
[null,null,"• Он отвечает за дачу команд по отключению и заземлению оборудования и получению подтверждения их выполнения, а также самостоятельные действия по отключению и заземлению оборудования в соответствии с мероприятиями по подготовке рабочего места, определенными нарядом_"]
[null,null,"• Он отвечает за выполнение всех указанных в наряде мероприятий по подготовке  рабочего места и их достаточность, за принимаемые им дополнительные меры безопасности, необходимые по условиям выполнения работ, за полноту и качество целевого инструктажа бригады, в том числе проводимого допускающим и производителем работ, а также за организацию безопасного ведения работ","Правильный_ответ"]
[null,null,"• Он отвечает за координацию времени и места допускаемых к работам в электроустановках бригад, в том числе учет бригад, получение информации от всех допущенных к работам в электроустановках бригад"]
[]
[]
[null,null,"90. . К какой категории, согласно Правилам устройства электроустановок, относятся электроприемники, перерыв электроснабжения которых может повлечь за собой опасность для жизни людей, угрозу для безопасности государства, значительный материальный ущерб, расстройство сложного технологического процесса, нарушение функционирования особо важных элементов коммунального хозяйства, объектов связи и телевидения?"]
[null,null,"• К первой категории","Правильный_ответ"]
[null,null,"• К особой группе первой категории"]
[null,null,"• Ко второй категории"]
[null,null,"• К третьей категории"]
[]
[null,null,"91.  Какое количество противоаварийных тренировок необходимо за время дублирования?"]
[null,null,"• Не менее 10 противоаварийных тренировок_"]
[null,null,"• Определяются индивидуальной программой подготовки по новой должности в  соответствии с Правилами проведения противоаварийных тренировок","Правильный_ответ"]
[null,null,"• Не менее 5 противоаварийных тренировок"]
[null,null,"• Не менее 7 противоаварийных тренировок"]
[]
[null,null,"92.  Какая проверка знаний проводится у персонала при назначении или переводе на другую работу, если новые обязанности требуют дополнительных знаний норм и правил?"]
[null,null,"• Первичная"]
[null,null,"• Повторная"]
[null,null,"• Очередная_"]
[null,null,"• Внеочередная ","Правильный_ответ"]
[]
[null,null,"93.  Чем должны перекрываться кабельные каналы и двойные полы в распределительных устройствах и помещениях?"]
[null,null,"• Съемными несгораемыми плитами ","Правильный_ответ"]
[null,null,"• Рифленой сталью_"]
[null,null,"• Деревянными щитами с паркетом, защищенными снизу асбестом и по асбесту жестью"]
[null,null,"• Пластиковыми перекрытиями"]
[]
[null,null,"94.  Кто проводит ремонт переносных электроприемников?"]
[null,null,"• Оперативно-ремонтный персонал Потребителя"]
[null,null,"• Ремонтный персонал Потребителя"]
[null,null,"• Специализированная организация (подразделение)","Правильный_ответ"]
[null,null,"• Электротехнический персонал Потребителя, имеющий III группу по электробезопасности"]
[]
[null,null,"95.  В каких случаях оперативный персонал, находящийся на дежурстве, можно привлекать к работе в бригаде по наряд - допуску?"]
[null,null,"• Можно, по разрешению работника из числа вышестоящего оперативного персонала и оформлением в наряде_"]
[null,null,"• Можно, по разрешению работника из числа вышестоящего оперативного персонала, с  записью в оперативном журнале и оформлением в наряд - допуске","Правильный_ответ"]
[null,null,"• Ни в каких случаях"]
[null,null,"• Можно, по разрешению работника из числа вышестоящего оперативного персонала"]
[]
[null,null,"96.  Когда, в соответствии с Правилами по охране труда при эксплуатации электроустановок, под оперативным персоналом понимается и оперативно-ремонтный персонал?"]
[null,null,"• Если отсутствуют особенные требования к ним","Правильный_ответ"]
[null,null,"• Если эти работники обслуживают однотипное оборудование"]
[null,null,"• Если эти работники имеют одинаковую квалификацию"]
[]
[]
[null,null,"97.  К какой категории, согласно Правилам устройства электроустановок, относятся электроприемники, перерыв электроснабжения которых приводит к массовому недоотпуску продукции, массовым простоям рабочих, механизмов и промышленного транспорта, нарушению нормальной деятельности значительного количества городских и сельских жителей?"]
[null,null,"• К первой категории_"]
[null,null,"• К особой группе первой категории"]
[null,null,"• Ко второй категории ","Правильный_ответ"]
[null,null,"• К третьей категории"]
[]
[null,null,"98.  Что необходимо помнить при выполнении работ в действующих электроустановках?"]
[null,null,"• Что работы в щитах управления и релейных щитах необходимо выполнять в защитных касках_"]
[null,null,"• Что при освещении рабочих мест должно быть обеспечено отсутствие слепящего действия осветительных устройств на работников"]
[null,null,"• Что после исчезновения напряжения на электроустановке оно может быть подано вновь без  предупреждения","Правильный_ответ"]
[]
[]
[null,null,"99.  Какой максимальный срок стажировки на каждом рабочем месте?"]
[null,null,"• 7 рабочих дней (смен)"]
[null,null,"• 5 рабочих дней (смен)_"]
[null,null,"• 14 рабочих дней (смен) ","Правильный_ответ"]
[null,null,"• 10 рабочих дней (смен)"]
[]
[null,null,"100. . Какую группу по электробезопасности должны иметь ответственный руководитель работ и производитель работ, имеющие право выполнения работ под напряжением на токоведущих частях, при работах в электроустановках до 1000 В?"]
[null,null,"• Не ниже IV ","Правильный_ответ"]
[null,null,"• Не ниже III_"]
[null,null,"• Ответственный руководитель работ не ниже IV, а производитель - III"]
[]
[]
[null,null,"101.  Какие меры принимаются к работнику, который в период дублирования был признан профессионально непригодным к данному виду деятельности?"]
[null,null,"• Он подлежит увольнению"]
[null,null,"• Он снимается с подготовки","Правильный_ответ"]
[null,null,"• Ему продлевается срок дублирования на определенное количество смен"]
[null,null,"• Может быть применена одна из перечисленных мер"]
[]
[null,null,"102.  Что является определением термина «Естественный заземлитель»?"]
[null,null,"• Проводящая часть или совокупность соединенных между собой проводящих частей, находящихся в электрическом контакте с землей непосредственно или через промежуточную проводящую среду"]
[null,null,"• Проводящая часть, не являющаяся частью электроустановки"]
[null,null,"• Сторонняя проводящая часть, находящаяся в электрическом контакте с землей непосредственно  или через промежуточную проводящую среду используемая для целей заземления","Правильный_ответ"]
[]
[]
[null,null,"103.  В каком случае на трансформаторах с системой охлаждения Д электродвигатели вентиляторов должны автоматически включаться?"]
[null,null,"• При температуре масла 45 °С или токе, равном номинальному, независимо от температуры масла"]
[null,null,"• При температуре масла 50 °С или токе, равном номинальному"]
[null,null,"• При температуре масла 55 °С или токе, равном номинальному, независимо от температуры  масла","Правильный_ответ"]
[null,null,"• При температуре масла 60 °С или токе, равном номинальному"]
[]
[null,null,"104.  Какие помещения, согласно ПУЭ, называются сырыми?"]
[null,null,"• Помещения, в которых относительная влажность воздуха не превышает 60 %_"]
[null,null,"• Помещения, в которых относительная влажность воздуха превышает 75 %","Правильный_ответ"]
[null,null,"• Помещения, в которых относительная влажность воздуха не превышает 90 %"]
[null,null,"• Помещения, в которых относительная влажность воздуха близка к 100 %"]
[]
[null,null,"105.  Допускается ли оформлять наряд-допуск в электронном виде?"]
[null,null,"• Наряд-допуск может быть выписан только от руки на специальном бланке установленной формы"]
[null,null,"• Наряд-допуск допускается оформлять только в виде телефонограммы или радиограммы_"]
[null,null,"• Допускается, по усмотрению руководителя, в зависимости от расположения диспетчерского пункта"]
[null,null,"• Разрешено оформлять наряд-допуск в электронном виде и передавать по электронной почте ","Правильный_ответ"]
[]
[null,null,"106.  На каком этапе производится вызов скорой медицинской помощи, других специальных служб, сотрудники которых обязаны оказывать первую помощь в соответствии с федеральным законом или со специальным правилом согласно приказу Минздрава России от 04.05.2012 N 477н?"]
[null,null,"• По окончании проведения сердечно-легочной реанимации и появления признаков жизни_"]
[null,null,"• После обнаружения пострадавшего и оценки обстановки по обеспечению безопасных  условий для оказания первой помощи","Правильный_ответ"]
[null,null,"• После осмотра пострадавшего и временной остановки наружного кровотечения"]
[]
[]
[null,null,"107.  Каким образом оформляются результаты проверки знаний по охране труда Потребителей?"]
[null,null,"• На основании протокола проверки знаний правил работы в электроустановках - в журнале установленной формы"]
[null,null,"• На основании указаний председателя комиссии по проверке знаний_"]
[null,null,"• Фиксируются в «Журнале учета проверки знаний правил работы в электроустановках»  рекомендуемого образца","Правильный_ответ"]
[null,null,"• Правилами не регламентировано"]
[]
[null,null,"108.  С какой периодичностью каждый работник из числа диспетчерского, оперативного и оперативно- ремонтного персонала должен быть проверен в контрольной противопожарной тренировке?"]
[null,null,"• 1 раз в 6 календарных месяцев ","Правильный_ответ"]
[null,null,"• На усмотрение главного технического руководителя в зависимости от характера выполняемой работы работника"]
[null,null,"• 1 раз в 3 календарных месяца"]
[]
[]
[null,null,"109.  Электроинструмент, какого класса можно применять без использования электрозащитных средств при производстве работ в металлических емкостях с ограниченной возможностью перемещения и выхода?"]
[null,null,"• Класса I_"]
[null,null,"• Класса II"]
[null,null,"• Класса III ","Правильный_ответ"]
[]
[]
[null,null,"110. . Какие условия для обычного исполнения светильников, согласно Правилам устройства электроустановок, должны соблюдаться при применении люминесцентных ламп в осветительных установках?"]
[null,null,"• Температура окружающей среды не должна быть выше 30 °С; напряжение у осветительных приборов должно быть не более 90 % номинального_"]
[null,null,"• Температура окружающей среды не должна быть выше 35 °С; напряжение у х осветительных приборов должно быть не более 95 % номинального"]
[null,null,"• Температура окружающей среды не должна быть ниже 5 °С; напряжение у осветительных  приборов должно быть не менее 90% номинального","Правильный_ответ"]
[null,null,"• Температура окружающей среды не должна быть ниже 0 °С; напряжение у осветительных приборов должно быть не менее 80% номинального"]
[]
[null,null,"111.  Когда проводятся внеочередные осмотры воздушной линии электропередачи?"]
[null,null,"• Только при образовании на проводах и тросах гололеда, после сильных бурь, ураганов и других стихийных бедствий, во время ледохода и разлива рек"]
[null,null,"• Только при пляске проводов"]
[null,null,"• Только при пожарах в зоне трассы ВЛ"]
[null,null,"• Только после отключения ВЛ релейной защитой и неуспешного автоматического повторного включения_"]
[null,null,"• В любом из перечисленных случаев ","Правильный_ответ"]
[null,null,"112.  Что, согласно Правилам устройства электроустановок, называется питающей осветительной сетью?"]
[null,null,"• Сеть от распределительного устройства подстанции или ответвления от воздушных  линий электропередачи до ВУ, ВРУ, ГРЩ","Правильный_ответ"]
[null,null,"• Сеть от ВУ ВРУ ГРЩ до распределительных пунктов, щитков и пунктов питания наружного освещения "]
[null,null,"• Сеть от щитков до светильников, штепсельных розеток и других электроприемников"]
[null,null,"• Система, осуществляющая последовательное включение (отключение) участков групповой сети наружного освещения"]
[]
[null,null,"113.  Кем выполняется подготовка рабочего места для выполнения строительно-монтажных работ?"]
[null,null,"• Работниками организации-владельца электроустановки ","Правильный_ответ"]
[null,null,"• Работниками строительно-монтажной организации_"]
[null,null,"• Работниками строительно-монтажной организации и организации-владельца х электроустановок"]
[]
[]
[null,null,"114.  У каких Потребителей можно не назначать ответственного за электрохозяйство?"]
[null,null,"• У Потребителей, не занимающихся производственной деятельностью, электрохозяйство  которых включает в себя только вводное (вводно-распределительное) устройство, осветительные установки, переносное электрооборудование номинальным напряжением не выше 380 В","Правильный_ответ"]
[null,null,"• У Потребителей, занимающихся производственной деятельностью, электрохозяйство которых включает в себя только вводное (вводно-распределительное) устройство, осветительные установки, переносное электрооборудование номинальным напряжением не выше 660 В"]
[null,null,"• У Потребителей, установленная мощность электроустановок которых превышает 10 кВА"]
[]
[]
[null,null,"115.  Какое минимальное время для ознакомления диспетчерского персонала с особенностями функционирования объекта электроэнергетики определяется по согласованию между субъектом оперативно-диспетчерского управления и организацией (ее филиалом), эксплуатирующей такой объект электроэнергетики?"]
[null,null,"• Не менее 1 рабочего дня ","Правильный_ответ"]
[null,null,"• Не менее 3 рабочих дней"]
[null,null,"• Не менее 5 рабочих дней"]
[null,null,"• Не менее 4 рабочих дней"]
[]
[null,null,"116.  После какого срока могут быть уничтожены наряд - допуски, работы по которым полностью закончены и не имели место аварии, инциденты и несчастные случаи?"]
[null,null,"• По истечении 30 суток_"]
[null,null,"• По истечении 1 года","Правильный_ответ"]
[null,null,"• По истечении 3 месяцев"]
[null,null,"• По истечении 6 месяцев"]
[]
[null,null,"117.  Как обозначаются шины при переменном однофазном токе?"]
[null,null,"• Шина В, присоединенная к концу обмотки источника питания, - красным цветом, шина А,  присоединенная к началу обмотки источника питания, - желтым цветом","Правильный_ответ"]
[null,null,"• Шина В, присоединенная к концу обмотки источника питания, - зеленым цветом, шина А, присоединенная к началу обмотки источника питания, - желтым цветом_"]
[null,null,"• Шина А, присоединенная к концу обмотки источника питания, - синим цветом, шина В, присоединенная к началу обмотки источника питания, - зеленым цветом"]
[null,null,"• Шина В, присоединенная к концу обмотки источника питания, - голубым цветом, шина А, присоединенная к началу обмотки источника питания. - зеленым цветом"]
[]
[null,null,"118.  Что принимается за начало и конец воздушной линии?"]
[null,null,"• Первая и последняя анкерные опоры линии"]
[null,null,"• Первая и последняя промежуточные опоры линии_"]
[null,null,"• Линейные порталы или линейные вводы электроустановки, служащей для приема и у распределения электроэнергии и содержащей коммутационные аппараты, сборные и соединительные шины, вспомогательные устройства (компрессорные, аккумуляторные), а также устройства защиты, автоматики и измерительные приборы, а для ответвлений - ответвительная опора и линейный портал или линейный ввод распределительного устройства","Правильный_ответ"]
[null,null,"• Шинные порталы электроустановки, служащей для приема и распределения электроэнергии и содержащей коммутационные аппараты, сборные и соединительные шины, вспомогательные устройства"]
[]
[null,null,"119.  В какие сроки должны проводиться учебные и контрольные противоаварийные тренировки для работников, относящихся к категории диспетчерского, оперативного, оперативно-ремонтного персонала?"]
[null,null,"• В порядке, установленном Правилами проведения противоаварийных тренировок у","Правильный_ответ"]
[null,null,"• Один раз в квартал"]
[null,null,"• Один раз в год"]
[]
[]
[null,null,"120. . Каким должно быть минимальное сечение отдельно проложенных защитных алюминиевых проводников?"]
[null,null,"• 2,5 мм2"]
[null,null,"• 4 мм2"]
[null,null,"• 8 мм2"]
[null,null,"• 14 мм2_"]
[null,null,"• 16 мм2","Правильный_ответ"]
[null,null,"121.  Каким образом производится присвоение группы I персоналу, усвоившему требования по электробезопасности?"]
[null,null,"• Путем проведения инструктажа с последующим проведением экзамена с использованием компьютерной техники_"]
[null,null,"• Присвоение группы I по электробезопасности производится путем проведения  инструктажа, который, как правило, должен завершаться проверкой знаний в форме устного опроса и (при необходимости) проверкой приобретенных навыков безопасных способов работы или оказания первой помощи при поражении электрическим током","Правильный_ответ"]
[null,null,"• Путем проведения инструктажа, а затем - прохождением стажировки не менее 5 рабочих смен с последующей проверкой приобретенных навыков безопасных способов работы"]
[]
[]
[null,null,"122.  В течение, какого срока проводится комплексное опробование основного и вспомогательного оборудования электроустановки перед приемкой в эксплуатацию?"]
[null,null,"• В течение 24 часов_"]
[null,null,"• В течение 48 часов"]
[null,null,"• В течение 72 часов","Правильный_ответ"]
[null,null,"• В течение 120 часов"]
[]
[null,null,"123.  Что представляет собой система ТТ для электроустановок напряжением до 1 кВ?"]
[null,null,"• Система, в которой нулевой защитный и нулевой рабочий проводники совмещены в одном проводнике на всем ее протяжении"]
[null,null,"• Система, в которой нулевой защитный и нулевой рабочий проводники разделены на всем ее протяжении_"]
[null,null,"• Система, в которой нейтраль источника питания изолирована от земли, либо заземлена через приборы или устройства, имеющие большое сопротивление, а открытые проводящие части электроустановки заземлены"]
[null,null,"• Система, в которой нейтраль источника питания глухо заземлена, а открытые проводящие части  электроустановки заземлены при помощи заземляющего устройства, электрически независимого   от глухозаземленной нейтрали источника","Правильный_ответ"]
[]
[null,null,"124.  Какое обучение в обязательном порядке должны пройти сотрудники, чтобы получить допуск к работе на объекте?"]
[null,null,"• Обучение на курсах повышения квалификации по специальности"]
[null,null,"• Обучение правилам действия в чрезвычайных ситуациях"]
[null,null,"• Обучение по санитарно-гигиеническим правилам"]
[null,null,"• Обучение мерам пожарной безопасности ","Правильный_ответ"]
[]
[null,null,"125.  Где проводится проверка знаний работников Потребителя, численность которых не позволяет создать собственную комиссию?"]
[null,null,"• В комиссии родственной организации"]
[null,null,"• В территориальной комиссии Ростехнадзора ","Правильный_ответ"]
[null,null,"• В образовательных учреждениях без привлечения инспектора Ростехнадзора_"]
[null,null,"• Ответственному за электрохозяйство разрешается единолично проводить проверку знаний"]
[]
[null,null,"126.  Каким образом проводится проверка знаний каждого работника?"]
[null,null,"• Группой по 3 человека"]
[null,null,"• Группой по 2 человека_"]
[null,null,"• Группой до 10 человек"]
[null,null,"• Индивидуально","Правильный_ответ"]
[]
[null,null,"127.  Допускается ли совмещенная прокладка токопроводов и технологических трубопроводов на общих опорах?"]
[null,null,"• Допускается"]
[null,null,"• Не допускается","Правильный_ответ"]
[null,null,"• Допускается, но только в горных районах х"]
[]
[]
[null,null,"128.  Кто назначается ответственным руководителем работ в электроустановках выше 1000 В?"]
[null,null,"• Работники из числа административно-технического персонала, имеющие группу V по  электробезопасности","Правильный_ответ"]
[null,null,"• Работники из числа административно-технического персонала, имеющие группу IV по электробезопасности"]
[null,null,"• Работники из числа оперативного персонала, имеющие группу IV по электробезопасности"]
[]
[]
[null,null,"129.  Что обязан сделать допускающий, осуществляющий первичный допуск бригады к работе по наряд - допуску или распоряжению?"]
[null,null,"• Допускающий должен проверить подготовку рабочего места"]
[null,null,"• Проверить соответствие состава бригады, указанного в наряде-допуске или распоряжении по именным удостоверениям"]
[null,null,"• Доказать бригаде, что напряжение отсутствует, показом установленных заземлений или проверкой отсутствия напряжения, если заземления не видны с рабочего места_"]
[null,null,"• Доказать бригаде, что напряжение отсутствует, показом установленных заземлений, а в электроустановках напряжением 35 кВ и ниже - прикоснувшись рукой к токоведущим частям"]
[null,null,"• Все перечисленное ","Правильный_ответ"]
[null,null,"130. . При каком напряжении шкафы комплектных устройств и корпуса сварочного оборудования (машин), имеющие неизолированные токоведущие части, должны быть оснащены блокировкой, обеспечивающей при открывании дверей (дверец) отключение от электрической сети устройств, находящихся внутри шкафа (корпуса)?"]
[null,null,"• Выше 24 В переменного или выше 60 В постоянного тока"]
[null,null,"• Выше 36 В переменного или выше 60 В постоянного тока_"]
[null,null,"• Выше 50 В переменного или выше 110 В постоянного тока ","Правильный_ответ"]
[]
[]
[null,null,"131.  Какая электроустановка считается действующей?"]
[null,null,"• Исправная электроустановка_"]
[null,null,"• Электроустановка или ее часть, которая находится под напряжением, либо на которую  напряжение может быть подано включением коммутационных аппаратов","Правильный_ответ"]
[null,null,"• Электроустановка, которая находится в постоянной эксплуатации"]
[null,null,"• Электроустановка, которая находится под напряжением не ниже 220 В"]
[]
[null,null,"132.  Что является определением термина «Заземление»?"]
[null,null,"• Сторонняя проводящая масть, находящаяся в электрическом контакте с землей непосредственно или через промежуточную проводящую среду, используемая для   целей заземления"]
[null,null,"• Заземление точек токоведущих частей электроустановки, выполняемое для обеспечения работы электроустановки"]
[null,null,"• Преднамеренное электрическое соединение какой-либо точки сети, электроустановки или  оборудования с заземляющим устройством","Правильный_ответ"]
[]
[]
[null,null,"133.  Где проводится проверка знаний у ответственных за электрохозяйство и их заместителей?"]
[null,null,"• В комиссии организации_"]
[null,null,"• В территориальной комиссии Ростехнадзора ","Правильный_ответ"]
[null,null,"• В комиссии учебного центра, образованной приказом руководителя учебного центра"]
[null,null,"• В любой из перечисленных комиссий"]
[]
[null,null,"134.  В какие сроки должен проводиться осмотр трансформаторов на трансформаторных пунктах без их отключения?"]
[null,null,"• Не реже 1 раза в сутки_"]
[null,null,"• Не реже 1 раза в неделю"]
[null,null,"• Не реже 1 раза в месяц ","Правильный_ответ"]
[null,null,"• Не реже 1 раза в год"]
[]
[null,null,"135.  Каким должно быть расстояние в производственных помещениях между параллельно проложенными силовыми кабелями и трубопроводами с горючими жидкостями?"]
[null,null,"• Не менее 0,25 м"]
[null,null,"• Не менее 0,5 м"]
[null,null,"• Не менее 0;8 м_"]
[null,null,"• Не менее 1,0 м ","Правильный_ответ"]
[]
[null,null,"136.  Право проведения, каких работ должно быть зафиксировано в удостоверении о проверке знаний правил работы в электроустановках в графе «Свидетельство на право проведения специальных работ»?"]
[null,null,"• Отсоединение и присоединение кабеля, проводов электродвигателя и отдельных электроприемников инженерного оборудования зданий и сооружений"]
[null,null,"• Ремонт пусковой и коммутационной аппаратуры"]
[null,null,"• Ремонт отдельно расположенных магнитных станций и блоков управления, уход за щеточным аппаратом электрических машин и смазка подшипников_"]
[null,null,"• Работы, выполняемые со снятием рабочего напряжения с электроустановки или ее  части с прикосновением ктоковедущим частям, находящимся под наведенным напряжением более 25 В на рабочем месте или на расстоянии от этих токоведущих частей менее допустимого","Правильный_ответ"]
[]
[null,null,"137.  Кто утверждает порядок проведения работы с персоналом в организации?"]
[null,null,"• Руководитель организации или уполномоченное им должностное лицо организации ","Правильный_ответ"]
[null,null,"• Инспектор Ростехнадзора"]
[null,null,"• Ответственный за электрохозяйство Потребителя"]
[null,null,"• Федеральный орган исполнительной власти"]
[]
[null,null,"138.  Что запрещено работнику при выполнении работ с применением переносного электроинструмента?"]
[null,null,"• Выполнять тестирование устройства защитного отключения"]
[null,null,"• Проверять комплектность и надежность крепления деталей"]
[null,null,"• Проверять исправность цепи заземления у машин I класса_"]
[null,null,"• Разбирать ручные электрические машины и электроинструмент производить какой-либо  ремонт","Правильный_ответ"]
[]
[null,null,"139.  Какие дополнительные обязанности может выполнять ответственный руководитель работ?"]
[null,null,"• Ответственного руководителя работ, производителя работ, допускающего"]
[null,null,"• Допускающего_"]
[null,null,"• Производитель работ, допускающий (в электроустановках, не имеющих местного  оперативного персонала)","Правильный_ответ"]
[]
[]
[null,null,"140. . Допускается ли прохождение воздушной линии электропередачи (ВЛ) по территории стадионов, учебных и детских учреждений?"]
[null,null,"• Не допускается ","Правильный_ответ"]
[null,null,"• Допускается"]
[null,null,"• Допускается при согласовании с территориальными органами Ростехнадзора"]
[null,null,"• Допускается при соответствующем обосновании в рабочей документации"]
[]
[null,null,"141.  Как классифицируются электроинструмент и ручные электрические машины по способу защиты от поражения электрическим током?"]
[null,null,"• Делятся на 4 класса - нулевой, первый, второй и третий"]
[null,null,"• Делятся на 3 класса - первый, второй и третий","Правильный_ответ"]
[null,null,"• Делятся на 4 класса - первый, второй, третий и четвертый"]
[null,null,"• Делятся на 3 класса - нулевой, первый и второй"]
[]
[null,null,"142.  Что является определением термина «Инструктаж целевой»?"]
[null,null,"• Указания по безопасному выполнению разовых работ, не связанных с прямыми должностными обязанностями по специальности"]
[null,null,"• Указания по безопасному выполнению конкретной работы в электроустановке для членов бригады или исполнителей_"]
[null,null,"• Указания по безопасному выполнению конкретной работы в электроустановке,  охватывающие категорию работников, определенных нарядом или распоряжением, от выдавшего наряд, отдавшего распоряжение до члена бригады или исполнителя","Правильный_ответ"]
[]
[]
[null,null,"143.  Когда должна осуществляться подготовка персонала для вводимых в работу новых и реконструируемых объектов электроэнергетики?"]
[null,null,"• За полгода до ввода в эксплуатацию_"]
[null,null,"• До начала проведения пробных пусков и комплексного опробования оборудования","Правильный_ответ"]
[null,null,"• За год до ввода в эксплуатацию"]
[]
[]
[null,null,"144.  В каком из перечисленных случаев проводятся внеочередные осмотры трансформаторов?"]
[null,null,"• После грозы и сильного ветра"]
[null,null,"• При работе газовой защиты на сигнал_"]
[null,null,"• При отключении трансформатора газовой или дифференциальной защитой"]
[null,null,"• Во всех перечисленных случаях ","Правильный_ответ"]
[]
[null,null,"145.  Какие помещения, согласно ПУЭ, называются сухими?"]
[null,null,"• Помещения, в которых относительная влажность воздуха не превышает 60 %","Правильный_ответ"]
[null,null,"• Помещения, в которых относительная влажность воздуха не превышает 75 %"]
[null,null,"• Помещения, в которых относительная влажность воздуха не превышает 70 %"]
[null,null,"• Помещения, в которых относительная влажность воздуха близка к 65 %"]
[]
[null,null,"146.  Допускается ли использовать средства защиты с истекшим сроком годности?"]
[null,null,"• Допускается"]
[null,null,"• Не допускается ","Правильный_ответ"]
[null,null,"• Допускается при отсутствии внешних повреждений"]
[null,null,"• Допускается с разрешения непосредственного руководителя"]
[]
[null,null,"147.  Сколько экземпляров на ряда-до пуска должно оформляться?"]
[null,null,"• Достаточно одного_"]
[null,null,"• Наряд-допуск оформляется в двух экземплярах, а при передаче по телефону, радио,  факсимильным или электронным письмом - в трех","Правильный_ответ"]
[null,null,"• Наряд-допуск оформляется в трех экземплярах"]
[]
[]
[null,null,"148.  Какое напряжение, согласно Правилам устройства электроустановок, должно применяться для питания переносных светильников в помещениях с повышенной опасностью и особо опасных помещениях?"]
[null,null,"• Не выше 50 В ","Правильный_ответ"]
[null,null,"• Не выше 110 В"]
[null,null,"• Не выше 220 В"]
[null,null,"• Не выше 127 В"]
[]
[null,null,"149.  Чем определяется объем знаний для проверки по каждой должности требованиями «Правил работы с персоналом в организациях электроэнергетики Российской Федерации»?"]
[null,null,"• Определяется руководителем организации"]
[null,null,"• Должностными обязанностями (трудовыми функциями) ","Правильный_ответ"]
[null,null,"• Определяется руководителем подразделения, ответственного за работу с кадрами"]
[]
[]
[null,null,"150. . Какая периодичность проверки знаний по электробезопасности установлена для электротехнического персонала, непосредственно организующего и проводящего работы по обслуживанию действующих электроустановок?"]
[null,null,"• Не реже 1 раза в год","Правильный_ответ"]
[null,null,"• Не реже 1 раза в 2 года_"]
[null,null,"• Не реже 1 раза в 3 года"]
[null,null,"• Не реже 1 раза в 5 лет"]
[]
[null,null,"151.  Кто относится к оперативно-ремонтному персоналу?"]
[null,null,"• Работники из числа ремонтного персонала с правом непосредственного воздействия на  органы управления оборудования и устройств релейной защиты и автоматики, осуществляющие оперативное обслуживание закрепленных за ними электроустановок","Правильный_ответ"]
[null,null,"• Работники, выполняющие техническое обслуживание и ремонт, монтаж наладку и испытание электрооборудования"]
[null,null,"• Работники, осуществляющие оперативное управление и обслуживание электроустановок (осмотр, оперативные переключения, подготовку рабочего места, допуск и надзор за работающими, выполнение работ в порядке текущей эксплуатации)"]
[null,null,"• Работники, на которых возложены обязанности по организации технического и оперативного обслуживания, проведения ремонтных, монтажных и наладочных работ в электроустановках"]
[]
[null,null,"152.  На кого распространяются Правила по охране труда при эксплуатации электроустановок?"]
[null,null,"• На работников промышленных предприятий, в составе которых имеются электроустановки_"]
[null,null,"• На работников организаций независимо от форм собственности и организационно- правовых форм и других физических лиц, занятых техническим обслуживанием электроустановок, проводящих в них оперативные переключения, организующих и выполняющих испытания и измерения"]
[null,null,"• На работодателей - юридических и физических лиц независимо от их организационно-правовых  форм и работников из числа электротехнического, электротехнологического и неэлектротехнического персонала","Правильный_ответ"]
[null,null,"• На работников всех организаций независимо от формы собственности, занятых техническим обслуживанием электроустановок и выполняющих в них строительные, монтажные и ремонтные работы"]
[]
[null,null,"153.  Допускается ли совмещение контрольных противоаварийных тренировок и контрольных противопожарных тренировок в соответствии с требованиями «Правил работы с персоналом в организациях электроэнергетики Российской Федерации»?"]
[null,null,"• Да ","Правильный_ответ"]
[null,null,"• Нет"]
[null,null,"• По согласованию с МЧС"]
[]
[]
[null,null,"154.  Что является определением термина «Эксплуатация»?"]
[null,null,"• Стадия жизненного цикла изделия, на которой реализуется, поддерживается или  восстанавливается его качество","Правильный_ответ"]
[null,null,"• Комплекс мероприятий, включающий в себя техническое обслуживание инженерных систем и коммуникаций"]
[null,null,"• Поддержание жизненного цикла изделия с целью его соответствия установленным требованиям технической документации"]
[]
[]
[null,null,"155.  С какой периодичностью должны проверяться наличие и состояние средств защиты работником, ответственным за их состояние, с записью результатов осмотра в журнал?"]
[null,null,"• Не реже 1 раза в 6 месяцев, а для переносных заземлений - не реже 1 раза в 3 месяца ","Правильный_ответ"]
[null,null,"• Для всех средств защиты 1 раз в 9 месяцев"]
[null,null,"• 1 раз в 9 месяцев, а для переносных заземлений -1 раз в 6 месяцев"]
[null,null,"• Только в ходе годовой инвентаризации материальных средств"]
[]
[null,null,"156.  Какие помещения, согласно ПУЭ, относятся к влажным?"]
[null,null,"• Помещения, в которых относительная влажность воздуха больше 60 %, но не превышает 75% ","Правильный_ответ"]
[null,null,"• Помещения, в которых относительная влажность воздуха в пределах 80 %_"]
[null,null,"• Помещения, в которых относительная влажность воздуха больше 75 %, но не превышает х 90%"]
[null,null,"• Помещения, в которых относительная влажность воздуха близка к 100 %"]
[]
[null,null,"157.  В течение, какого срока проводится дублирование перед допуском электротехнического персонала к самостоятельной работе?"]
[null,null,"• От 1 до 5 смен"]
[null,null,"• От 2 до 4 смен_"]
[null,null,"• От 2 до 12 смен ","Правильный_ответ"]
[null,null,"• От 2 до 14 смен"]
[]
[null,null,"158.  Кем проводится присвоение I группы по электробезопасности?"]
[null,null,"• Присвоение I группы по электробезопасности проводится работником из числа электротехнического персонала, имеющего группу III по электробезопасности, назначенным распоряжением руководителя организации_","Правильный_ответ"]
[null,null,"• Присвоение I группы по электробезопасности проводится работником из числа электротехнического персонала, имеющего группу IV по электробезопасности, назначенным распоряжением руководителя организации"]
[null,null,"• Присвоение I группы по электробезопасности проводится работником из числа электротехнического персонала, прошедшего проверку знаний в комиссии территориального органа Ростехнадзора"]
[]
[]
[null,null,"159.  Что находится в оперативном управлении старшего работника из числа оперативного персонала?"]
[null,null,"• Оборудование и ЛЭП, токопроводы"]
[null,null,"• Устройства релейной защиты, аппаратура системы противоаварийной и режимной автоматики"]
[null,null,"• Средства диспетчерского и технологического управления_"]
[null,null,"• Все перечисленные устройства и оборудование, операции с которыми требуют  координации действий подчиненного оперативного персонала и согласованных изменений режимов на нескольких объектах","Правильный_ответ"]
[]
[null,null,"160. . Какие действия должны предприниматься в отношении работников, получивших неудовлетворительную оценку действий при проведении тренировки (противоаварийной или противопожарной)?"]
[null,null,"• Повторная тренировка в сроки, определяемые уполномоченным должностным лицом  организации, но не позднее 1 месяца","Правильный_ответ"]
[null,null,"• Проведение специальной подготовки по выполнению противоаварийных (противопожарных) тренировок, приближенных к производственным"]
[null,null,"• Проведение целевого инструктажа"]
[]
[]
[null,null,"161.  Кто у Потребителя утверждает график периодических осмотров воздушных линий?"]
[null,null,"• Ответственный за электрохозяйство Потребителя ","Правильный_ответ"]
[null,null,"• Технический руководитель Потребителя"]
[null,null,"• Руководитель Потребителя"]
[null,null,"• С одной стороны - руководитель Потребителя, с другой стороны - инспектор Ростехнадзора"]
[]
[null,null,"162.  Что, согласно Правилам устройства электроустановок, называется приемником электрической энергии (электроприемником)?"]
[null,null,"• Распределительное устройство, предназначенное для обеспечения потребителей х электрической энергией"]
[null,null,"• Подстанция, работающая на определенной территории"]
[null,null,"• Электроустановка, предназначенная для обеспечения потребителей электрической энергией"]
[null,null,"• Аппарат, агрегат и др., предназначенный для преобразования электрической энергии в другой  вид энергии","Правильный_ответ"]
[]
[null,null,"163.  Какую периодичность повышения квалификации должен обеспечивать работодатель для персонала?"]
[null,null,"• Не реже 1 раза в год"]
[null,null,"• Не реже 1 раза в 3 года_"]
[null,null,"• Не реже 1 раза в 5 лет ","Правильный_ответ"]
[null,null,"• Не реже 1 раза в 10 лет"]
[]
[null,null,"164.  С какой периодичностью должна проводиться перекатка пожарных рукавов?"]
[null,null,"• Не реже 1 раза в год ","Правильный_ответ"]
[null,null,"• Не реже 1 раза в 2 года"]
[null,null,"• Не реже 1 раза в 3 года"]
[]
[]
[null,null,"165.  В каком объеме должна проводиться стажировка для диспетчерского, оперативного, оперативно- ремонтного и ремонтного персонала?"]
[null,null,"• В объеме, определенном программой подготовки по новой должности","Правильный_ответ"]
[null,null,"• В объеме, 72 академических часов"]
[null,null,"• В объеме, 160 академических часов"]
[null,null,"• В объеме, 240 академических часов"]
[]
[null,null,"166.  Допускается ли, согласно Правилам устройства электроустановок, сооружение встроенных или пристроенных подстанций в спальных корпусах различных учреждений, в школьных и других учебных заведениях?"]
[null,null,"• Допускается без ограничений_"]
[null,null,"• Допускается при выполнении в полном объеме санитарных требований по ограничению х уровня шума и вибрации"]
[null,null,"• Допускается, если это согласовано с руководством учреждений и учебных заведений"]
[null,null,"• Не допускается ","Правильный_ответ"]
[]
[null,null,"167.  Каким образом не допускается производство работ в действующих электроустановках?"]
[null,null,"• По наряду-допуску"]
[null,null,"• По распоряжению_"]
[null,null,"• На основании перечня работ, выполняемых в порядке текущей эксплуатации"]
[null,null,"• Самовольно","Правильный_ответ"]
[]
[null,null,"168.  Что является подтверждением проведения и получения целевого инструктажа членами бригады?"]
[null,null,"• Подписи членов бригады в таблицах регистрации целевых инструктажей","Правильный_ответ"]
[null,null,"• Подписи ответственного руководителя работ в таблицах регистрации целевых инструктажей"]
[null,null,"• Запись в таблице регистрации целевого инструктажа"]
[]
[]
[null,null,"169.  На какое количество присоединений допускается выдавать наряд-допуск в электроустановках выше 1000 В, где напряжение снято со всех токоведущих частей, в том числе с вводов воздушной линии электропередачи и кабельной линии, и заперт вход в соседние электроустановки?"]
[null,null,"• На каждое присоединение - один наряд - допуск"]
[null,null,"• На каждую секцию один наряд - допуск для работы на части присоединений_"]
[null,null,"• Один наряд - допуск для одновременной работы на сборных шинах и всех  присоединениях","Правильный_ответ"]
[]
[]
[null,null,"170. . Каким должно быть сопротивление заземляющего устройства, к которому присоединены нейтрали генератора, при линейном напряжении 380 В источника трехфазного тока?"]
[null,null,"• Не более 2 Ом"]
[null,null,"• Не более 4 Ом ","Правильный_ответ"]
[null,null,"• Не более 6 Ом"]
[null,null,"• Не более 8 Ом"]
[]
[null,null,"171.  Какие рабочие места предусмотрены во время стажировки для ремонтного персонала?"]
[null,null,"• Свое рабочее место и (или) рабочие места оперативного персонала объектов электроэнергетики такой организации, определенные программой подготовки по новой должности"]
[null,null,"• Рабочее место в своем диспетчерском центре, а также рабочее место диспетчера в полнофункциональном резервном диспетчерском центре (при его наличии)"]
[null,null,"• Свое рабочее место и (или) специально оборудованные полигоны и мастерские ","Правильный_ответ"]
[]
[]
[null,null,"172.  Какое напряжение должно применяться для питания переносных (ручных) светильников, применяемых в помещениях с повышенной опасностью?"]
[null,null,"• Не выше 12 В"]
[null,null,"• Не выше 42 В_"]
[null,null,"• Не выше 50 В ","Правильный_ответ"]
[null,null,"• Не выше 127 В"]
[]
[null,null,"173.  Что представляет собой система TN для электроустановок напряжением до 1 кВ?"]
[null,null,"• Система, в которой нулевой защитный и нулевой рабочий проводники совмещены в одном проводнике на всем ее протяжении_"]
[null,null,"• Система, в которой нейтраль источника питания глухо заземлена, а открытые  проводящие части электроустановки присоединены к глухозаземленной нейтрали источника посредством нулевых защитных проводников","Правильный_ответ"]
[null,null,"• Система, в которой нейтраль источника питания изолирована от земли или заземлена через приборы или устройства, имеющие большое сопротивление, а открытые проводящие части электроустановки заземлены"]
[]
[]
[null,null,"174.  Как часто должна проводиться проверка электрических схем электроустановок на соответствие фактическим эксплуатационным?"]
[null,null,"• Не реже 1 раза в полгода с отметкой о поверке_"]
[null,null,"• Не реже 1 раза в год с отметкой о поверке"]
[null,null,"• Не реже 1 раза в 2 года с отметкой о поверке ","Правильный_ответ"]
[null,null,"• Не реже 1 раза в 3 года с отметкой о поверке"]
[null,null,"• Не реже 1 раза в 5 лет с отметкой о поверке"]
[null,null,"175.  Укажите, как часто должны осуществляться обходы и осмотры рабочих мест уполномоченными лицами организации?"]
[null,null,"• Периодичность, порядок их организации и проведения определяет руководитель  организации или уполномоченное им должностное лицо","Правильный_ответ"]
[null,null,"• Не менее раза в месяц"]
[null,null,"• Не менее 1 раза в 10 дней"]
[]
[]
[null,null,"176.  Какие электроустановки и электрические приборы подлежат отключению по окончании рабочего времени?"]
[null,null,"• Дежурное освещение"]
[null,null,"• Установки пожаротушения и противопожарного водоснабжения"]
[null,null,"• Установки пожарной и охранно-пожарной сигнализации_"]
[null,null,"• Электроустановки и бытовые электроприборы, находящиеся в помещениях, в которых  отсутствует дежурный персонал","Правильный_ответ"]
[]
[null,null,"177.  На каком расстоянии на кабелях, проложенных в кабельных сооружениях, должны располагаться бирки?"]
[null,null,"• Не реже чем через каждые 50 м ","Правильный_ответ"]
[null,null,"• Не реже чем через каждые 100 м"]
[null,null,"• Не реже чем через каждые 150 м"]
[]
[]
[null,null,"178.  Кто назначается ответственным руководителем работ в электроустановках до 1000 В?"]
[null,null,"• Работники из числа оперативного персонала, имеющие группу IV по электробезопасности_"]
[null,null,"• Работники из числа административно-технического персонала, имеющие группу III по электробезопасности"]
[null,null,"• Работники из числа административно-технического персонала, имеющие группу IV по  электробезопасности","Правильный_ответ"]
[]
[]
[null,null,"179.  Что должно предшествовать началу работ по наряд - допуску или по распоряжению?"]
[null,null,"• Первичный инструктаж на рабочем месте"]
[null,null,"• Вводный инструктаж"]
[null,null,"• Целевой инструктаж","Правильный_ответ"]
[null,null,"• Повторный инструктаж"]
[]
[null,null,"180. . Какой минимальный стаж работы в электроустановках должен быть у работника с высшим профессиональным (техническим) образованием в области электроэнергетики для перехода с третьей группы электробезопасности на четвертую?"]
[null,null,"• 3 месяца в предыдущей группе"]
[null,null,"• 2 месяца в предыдущей группе ","Правильный_ответ"]
[null,null,"• 6 месяцев в предыдущей группе"]
[null,null,"• 1 месяц в предыдущей группе"]
[]
[null,null,"181.  Какая вода должна применяться для доливки аккумуляторов?"]
[null,null,"• Водопроводная"]
[null,null,"• Котловая_"]
[null,null,"• Дистиллированная","Правильный_ответ"]
[null,null,"• Дождевая"]
[]
[null,null,"182.  Что, согласно Правилам устройства электроустановок, называется независимым источником питания?"]
[null,null,"• Источник питания, на котором сохраняется напряжение в нормальном режиме, при исчезновении его на другом или других источниках питания_"]
[null,null,"• Источник питания, на котором сохраняется напряжение в послеаварийном режиме в регламентированных пределах при исчезновении его на другом или других источниках питания","Правильный_ответ"]
[null,null,"• Аппарат агрегат и др., предназначенный для независимого преобразования электрической энергии в другой вид энергии"]
[null,null,"• Электрическая часть энергосистемы, питающая приемники электрической энергии, размещающиеся на определенной территории"]
[]
[null,null,"183.  Каков порядок допуска к самостоятельной работе вновь принятых работников или имевших перерыв в работе более 6 месяцев?"]
[null,null,"• В зависимости от категории персонала, после прохождения этапов подготовки в соответствии с у индивидуальной программой подготовки","Правильный_ответ"]
[null,null,"• В зависимости от категории персонала, после прохождения специальной подготовки, программу и порядок проведения которой определяет руководитель организации_"]
[null,null,"• В зависимости от категории персонала, после ознакомления с изменениями в схемах и режимах работы энергоустановок, с вновь введенными в действие НТД, приказами и распоряжениями"]
[]
[]
[null,null,"184.  В течение, какого времени основное оборудование электроустановок, прошедшее капитальный ремонт, подлежит испытаниям под нагрузкой?"]
[null,null,"• В течение 12 часов_"]
[null,null,"• В течение 24 часов ","Правильный_ответ"]
[null,null,"• В течение 36 часов"]
[null,null,"• В течение 48 часов"]
[]
[null,null,"185.  Куда должны складываться использованные обтирочные материалы?"]
[null,null,"• В контейнеры из негорючего материала с закрывающейся крышкой ","Правильный_ответ"]
[null,null,"• В специальные контейнеры вместимостью не более 1,0 м3 с надписью «Для ветоши»_"]
[null,null,"• В деревянные закрывающиеся ящики обработанные огнезащитными составами вместимостью не более 1,5 м3 с надписью «Для ветоши»"]
[null,null,"• В металлические ведра с крышкой и надписью «Для ветоши»"]
[]
[null,null,"186.  Что является определением термина «Защитное заземление»?"]
[null,null,"• Заземление точки или точек токоведущих частей электроустановки, выполняемое для обеспечения работы электроустановки"]
[null,null,"• Заземление, выполняемое в целях электробезопасности ","Правильный_ответ"]
[null,null,"• Преднамеренное электрическое соединение какой-либо точки сети, электроустановки или оборудования с заземляющим устройством"]
[]
[]
[null,null,"187.  Какие дополнительные обязанности может выполнять выдающий наряд-допуск, отдающий распоряжение?"]
[null,null,"• Ответственного руководителя работ производителя работ, допускающего (в  электроустановках, не имеющих местного оперативного персонала)","Правильный_ответ"]
[null,null,"• Производителя работ, допускающего"]
[null,null,"• Допускающего"]
[]
[]
[null,null,"188.  На какие виды, согласно Правилам устройства электроустановок, делится аварийное освещение?"]
[null,null,"• Дежурное освещение и эвакуационное освещение"]
[null,null,"• Общее освещение и сигнальное освещение"]
[null,null,"• Освещение безопасности и эвакуационное освещение ","Правильный_ответ"]
[null,null,"• Рабочее освещение и комбинированное освещение"]
[]
[null,null,"189.  Какое минимальное сечение должен иметь медный заземляющий проводник, присоединяющий заземлитель рабочего (функционального) заземления к главной заземляющей шине в электроустановках напряжением до 1 кВ?"]
[null,null,"• 2,5 мм2_"]
[null,null,"• 6 мм2"]
[null,null,"• 7,5 мм2"]
[null,null,"• 10 мм2 ","Правильный_ответ"]
[]
[null,null,"190. . Какое из положений не соответствует Правилам технической эксплуатации электроустановок потребителей при эксплуатации электродвигателей?"]
[null,null,"• Электродвигатели с водяным охлаждением активной стали статора и обмотки ротора должны быть оборудованы устройствами, сигнализирующими о появлении воды в корпусе_"]
[null,null,"• На групповых сборках и щитках электродвигателей должны быть предусмотрены х вольтметры или сигнальные лампы контроля наличия напряжения"]
[null,null,"• На электродвигателях, имеющих принудительную смазку подшипников, должна быть  установлена защита, действующая только на сигнал","Правильный_ответ"]
[null,null,"• При изменении частоты питающей сети в пределах 2,5 % от номинального значения допускается работа электродвигателей с номинальной мощностью"]
[]
[null,null,"191.  Какие вопросы включает программа планового производственного инструктажа?"]
[null,null,"• Особенности и режимы эксплуатации оборудования в период его пуска, нормальной работы, останова, консервации"]
[null,null,"• Принципы работы оборудования и устройств (комплексов) РЗА"]
[null,null,"• Вопросы управления электроэнергетическим режимом и иные технологические вопросы"]
[null,null,"• Все перечисленное ","Правильный_ответ"]
[]
[null,null,"192.  Что из перечисленного входит в обязанности ответственного за электрохозяйство?"]
[null,null,"• Укомплектование электроустановок защитными средствами, средствами пожаротушения и инструментом"]
[null,null,"• Подбор электротехнического и электротехнологического персонала_"]
[null,null,"• Организация обучения, инструктирования, проверки знаний и допуска к  самостоятельной работе электротехнического персонала","Правильный_ответ"]
[null,null,"• Все перечисленное здесь входит в обязанности ответственного за электрохозяйство"]
[]
[null,null,"193.  На какой высоте, как правило, должны устанавливаться штепсельные розетки на номинальный ток до 16 А и напряжение до 250 В в производственных помещениях?"]
[null,null,"• На высоте до 1,0 м_"]
[null,null,"• На высоте 0,8-1,0 м ","Правильный_ответ"]
[null,null,"• На высоте до 1,5 м"]
[null,null,"• На высоте более 1,5 м"]
[]
[null,null,"194.  С какой периодичностью производится проверка работоспособности систем оповещения людей о пожаре?"]
[null,null,"• Не реже 1 раза в месяц_"]
[null,null,"• Это должны делать ответственные за пожарную безопасность в организации каждые 6 месяцев"]
[null,null,"• Не реже 1 раза в квартал","Правильный_ответ"]
[null,null,"• Не реже 1 раза в год"]
[]
[null,null,"195.  Кто периодически должен проводить выборочный осмотр кабельных линий?"]
[null,null,"• Оперативный персонал Потребителя"]
[null,null,"• Административно-технический персонал Потребителя ","Правильный_ответ"]
[null,null,"• Оперативно-ремонтный персонал Потребителя_"]
[null,null,"• Представители управления энергонадзора территориального органа Ростехнадзора"]
[]
[null,null,"196.  В каких случаях может быть отозван допуск к самостоятельной работе?"]
[null,null,"• Неудовлетворительной оценки, полученной работником по результатам проверки знаний"]
[null,null,"• Заключений (актов) комиссий, расследовавших несчастные случаи, аварии в электроэнергетике, пожары, инциденты_"]
[null,null,"• Неудовлетворительной оценки, полученной работником повторно на индивидуальной противоаварийной или противопожарной тренировке"]
[null,null,"• Во всех перечисленных случаях ","Правильный_ответ"]
[]
[null,null,"197.  Какие требования безопасности должен выполнять оперативный персонал при исчезновении напряжения на электроустановке?"]
[null,null,"• Должен быть готов к появлению напряжения без предупреждения в любое время","Правильный_ответ"]
[null,null,"• Должен действовать согласно должностной инструкции"]
[null,null,"• Должен действовать согласно ПЛА_"]
[null,null,"• Должен выполнять последовательность операций, определяемую вышестоящим х оперативным персоналом"]
[]
[null,null,"198.  Допускается ли самовольное проведение работ в действующих электроустановках, а также расширение рабочих мест и объема задания, определенных наряд-допуском, распоряжением или утвержденным работодателем перечнем работ, выполняемых в порядке текущей эксплуатации?"]
[null,null,"• Допускается самовольное проведение работ только при возникновении аварийной ситуации с разрешения вышестоящего оперативного персонала_"]
[null,null,"• Допускается расширение рабочих мест и объема задания, определенных наряд - допуском или распоряжением при выполнении неотложных работ, для выполнения которых требуется более 1 часа, с разрешения производителя работ"]
[null,null,"• Допускается, учитывая важность электроустановки в технологическом процессе, с обязательной записью в оперативном журнале"]
[null,null,"• Самовольное проведение работ, расширение рабочих мест и объема задания, определенных  наряд - допуском, распоряжением или утвержденным работодателем перечнем работ, выполняемых в порядке текущей эксплуатации в действующих электроустановках не допускается","Правильный_ответ"]
[]
[null,null,"199.  Что, согласно Правилам устройства электроустановок, называется потребителем электрической энергии?"]
[null,null,"• Электрическая часть энергосистемы и питающиеся от нее приемники электрической энергии, объединенные общностью процесса передачи и распределения электрической энергии_"]
[null,null,"• Электрические и тепловые сети, связанные общностью режимов в непрерывном процессе преобразования, передачи и распределения электрической и тепловой энергии"]
[null,null,"• Электроприемник или группа электроприемников, объединенных технологическим процессом и  размещающихся на определенной территории","Правильный_ответ"]
[null,null,"• Системы электроснабжения подземных, тяговых и других специальных установок, связанных общностью технологических процессов"]
[]
[null,null,"200. . Какие требования установлены Правилами по охране труда при эксплуатации электроустановок по ведению журнала учета работ по нарядам-допускам и распоряжениям?"]
[null,null,"• Форму журнала определяет руководитель структурного подразделения в зависимости от специфики деятельности_"]
[null,null,"• Независимо от принятого в организации порядка учета работ по нарядам-допускам и  распоряжениям факт допуска к работе должен быть зарегистрирован записью в оперативном документе","Правильный_ответ"]
[null,null,"• Ведение журнала учета работ по нарядам и распоряжениям не допускается в электронной форме с применением автоматизированных систем и использованием электронной подписи"]
[]
[]
[null,null,"201.  Каким образом обозначаются проводники защитного заземления, а также нулевые защитные проводники в электроустановках напряжением до 1 кВ с глухозаземленной нейтралью?"]
[null,null,"• Обозначаются РЕ и имеют цветовое обозначение чередующимися продольными или  поперечными полосами одинаковой ширины желтого и зеленого цветов","Правильный_ответ"]
[null,null,"• Обозначаются RE и имеют цветовое обозначение чередующимися продольными или поперечными полосами одинаковой ширины белого и зеленого цветов"]
[null,null,"• Обозначаются РЕ и имеют цветовое обозначение чередующимися продольными или поперечными полосами одинаковой ширины желтого и белого цветов"]
[]
[]
[null,null,"202.  Что должен пройти командированный персонал по прибытии на место своей командировки для выполнения работ в действующих электроустановках?"]
[null,null,"• Индивидуальную теоретическую подготовку"]
[null,null,"• Контрольную противоаварийную тренировку"]
[null,null,"• Вводный и первичный инструктажи по безопасности труда ","Правильный_ответ"]
[null,null,"• Ознакомление с текущими распорядительными документами организации по вопросам х аварийности и травматизма"]
[]
[null,null,"203.  Сколько человек должно быть в комиссии по проверке знаний электротехнического персонала?"]
[null,null,"• Не менее 3 человек"]
[null,null,"• Не менее 4 человек_"]
[null,null,"• Не менее 5 человек ","Правильный_ответ"]
[null,null,"• Не регламентируется"]
[]
[null,null,"204.  Кто имеет право на продление наряд - допуска?"]
[null,null,"• Только работник, выдавший наряд-допуск, или имеющий право выдачи наряда-допуска  в данной электроустановке","Правильный_ответ"]
[null,null,"• Ответственный руководитель работ в данной электроустановке"]
[null,null,"• Ответственный за электрохозяйство структурного подразделения"]
[null,null,"• Руководитель объекта, на котором проводятся работы"]
[]
[null,null,"205.  На кого не распространяются требования «Правил работы с персоналом в организациях электроэнергетики Российской Федерации»?"]
[null,null,"• Системного оператора и субъекты оперативно-диспетчерского управления в электроэнергетике в технологически изолированных территориальных электроэнергетических системах (далее - субъекты оперативно-диспетчерского управления)_"]
[null,null,"• Субъекты электроэнергетики и потребителей электрической энергии, владеющих на праве собственности или ином законном основании объектами по производству электрической энергии, в том числе объектами, функционирующими в режиме комбинированной выработки электрической и тепловой энергии"]
[null,null,"• Субъекты электроэнергетики и потребителей электрической энергии, владеющих на праве собственности или ином законном основании объектами электросетевого хозяйства"]
[null,null,"• Потребителей электрической энергии и владельцев объектов электроэнергетики, являющихся  физическими лицами","Правильный_ответ"]
[]
[null,null,"206.  Какие из перечисленных изолирующих электрозащитных средств относятся к основным изолирующим электрозащитным средствам для электроустановок напряжением до 1000 В?"]
[null,null,"• Изолирующие клещи ","Правильный_ответ"]
[null,null,"• Диэлектрические галоши_"]
[null,null,"• Диэлектрические ковры и изолирующие подставки"]
[null,null,"• Изолирующие колпаки, покрытия и накладки"]
[]
[null,null,"207.  В каком из перечисленных случаев трансформатор должен быть аварийно выведен из работы?"]
[null,null,"• Только при сильном неравномерном шуме и потрескивании внутри трансформатора"]
[null,null,"• Только при выбросе масла из расширителя"]
[null,null,"• Только при течи масла с понижением его уровня ниже уровня масломерного стекла_"]
[null,null,"• Только при необходимости немедленной замены масла по результатам лабораторных анализов"]
[null,null,"• В любом из перечисленных случаев","Правильный_ответ"]
[null,null,"208.  При каком условии работники, не обслуживающие электроустановки, могут допускаться в РУ до 100С"]
[null,null,"• В сопровождении оперативного персонала, обслуживающего данную электроустановку, имеющего группу IV, либо работника, имеющего право единоличного осмотра_"]
[null,null,"• В сопровождении оперативного персонала, обслуживающего данную электроустановку,  имеющего группу III, либо работника, имеющего право единоличного осмотра","Правильный_ответ"]
[null,null,"• В сопровождении опытного работника из числа ремонтного персонала, имеющего группу по электробезопасности не ниже V"]
[]
[]
[null,null,"209.  Что является определением термина «Основная изоляция»?"]
[null,null,"• Изоляция в электроустановках напряжением до 1 кВ, обеспечивающая степень защиты от поражения электрическим током"]
[null,null,"• Изоляция токоведущих частей, обеспечивающая, в том числе, защиту от прямого прикосновения ","Правильный_ответ"]
[null,null,"• Независимая изоляция в электроустановках напряжением до 1 кВ, для защиты при косвенном прикосновении"]
[]
[]
[null,null,"210. . Какую периодичность проверки соответствия схем электроснабжения фактическим эксплуатационным с отметкой на них о проверке обязан обеспечить ответственный за электрохозяйство?"]
[null,null,"• Не реже 1 раза в год_"]
[null,null,"• Не реже 1 раза в 2 года ","Правильный_ответ"]
[null,null,"• Не реже 1 раза в 3 года"]
[null,null,"• Не реже 1 раза в 5 лет"]
[]
[null,null,"211.  Кто проводит целевой инструктаж при работах по распоряжению для членов бригады?"]
[null,null,"• Ответственный руководитель работ"]
[null,null,"• Работник, отдающий распоряжение"]
[null,null,"• Производитель работ - членам бригады ","Правильный_ответ"]
[null,null,"• Все перечисленные лица"]
[]
[null,null,"212.  Можно ли принимать в эксплуатацию электроустановки с дефектами и недоделками?"]
[null,null,"• Можно, с условием устранения недоделок в течение месяца со дня приемки электроустановки в эксплуатацию"]
[null,null,"• Можно, если на это есть разрешение энергонадзора"]
[null,null,"• Можно, если имеющиеся дефекты не влияют на работу электроустановки"]
[null,null,"• Приемка в эксплуатацию электроустановок с недоделками не допускается ","Правильный_ответ"]
[]
[null,null,"213.  Какой срок действия допуска к самостоятельной работе категорий диспетчерского, оперативного, оперативно-ремонтного и ремонтного персонала?"]
[null,null,"• До очередной проверки знаний ","Правильный_ответ"]
[null,null,"• На 1 год"]
[null,null,"• На 6 месяцев"]
[null,null,"• На 2 года"]
[]
[null,null,"214.  Чем должны отличаться светильники аварийного освещения от светильников рабочего освещения?"]
[null,null,"• Исполнением_"]
[null,null,"• Знаками или окраской ","Правильный_ответ"]
[null,null,"• Принципиальных отличий нет"]
[]
[]
[null,null,"215.  У какого количества опор воздушных линий, имеющих заземляющие устройства, производится выборочное вскрытие грунта для осмотра этих заземляющих устройств?"]
[null,null,"• У 1 % опор"]
[null,null,"• У 2 % опор ","Правильный_ответ"]
[null,null,"• У 3 % опор"]
[null,null,"• У 5 % опор"]
[]
[null,null,"216.  Какой документ выдается персоналу по результатам проверки знаний по электробезопасности?"]
[null,null,"• Удостоверение установленной формы ","Правильный_ответ"]
[null,null,"• Протокол проверки знаний"]
[null,null,"• Сертификат о прохождении обучения и проверки знаний"]
[]
[]
[null,null,"217.  Сколько схем существует для обеспечения безопасности персонала при выполнении работ под напряжением на токоведущих частях согласно Правилам по охране труда при эксплуатации электроустановок?"]
[null,null,"• Одна_"]
[null,null,"• Две х"]
[null,null,"• Три ","Правильный_ответ"]
[]
[]
[null,null,"218.  Какую группу по электробезопасности должен иметь допускающий в электроустановках напряжением до 1000 В?"]
[null,null,"• Группу IV по электробезопасности_"]
[null,null,"• Группу III по электробезопасности","Правильный_ответ"]
[null,null,"• Группу IV или V по электробезопасности"]
[]
[]
[null,null,"219.  Что представляет собой система TN-C для электроустановок напряжением до 1 кВ?"]
[null,null,"• Система, в которой нулевой защитный и нулевой рабочий проводники совмещены в одном  проводнике на всем ее протяжении","Правильный_ответ"]
[null,null,"• Система, в которой нейтраль источника питания глухо заземлена, а открытые проводящие части электроустановки присоединены к глухозаземленной нейтрали источника посредством нулевых защитных проводников_"]
[null,null,"• Система, в которой нейтраль источника питания изолирована от земли, либо заземлена через приборы или устройства, имеющие большое сопротивление, а открытые проводящие части электроустановки заземлены"]
[null,null,"• Система, в которой нулевой защитный и нулевой рабочий проводники разделены на всем ее протяжении"]
[]
[null,null,"220. . В каких случаях, согласно Правилам устройства электроустановок, допускается размещение встроенных и пристроенных подстанций с использованием сухих трансформаторов в жилых зданиях при выполнении в полном объеме санитарных требований по ограничению уровня шума и вибрации в соответствии с действующими стандартами?"]
[null,null,"• В любых случаях по согласованию с управляющей компанией или ТСЖ_"]
[null,null,"• В любых случаях по согласованию с органами муниципальной власти"]
[null,null,"• В исключительных случаях по согласованию с жильцами"]
[null,null,"• В исключительных случаях по согласованию с органами государственного надзора ","Правильный_ответ"]
[]
[null,null,"221.  Когда проводится проверка состояния защиты от перенапряжений распределительных устройств?"]
[null,null,"• Ежегодно, в любое время"]
[null,null,"• Ежегодно, перед началом грозового сезона ","Правильный_ответ"]
[null,null,"• Ежегодно перед началом и по окончании грозового сезона"]
[null,null,"• Два раза в год - весной и осенью"]
[]
[null,null,"222.  В каких случаях запрещается выполнение (возобновление) работ на ВЛ, ВЯЗ, ВЛИ под напряжением?"]
[null,null,"• Аварийного отключения ВЛ, ВЛЗ, ВЛИ действием защит при производстве работ на токоведущих частях_"]
[null,null,"• Обнаружения повреждения на ВЛ, ВЛЗ, ВЛИ, устранение которого невозможно без нарушения технологии работ под напряжением на токоведущих частях"]
[null,null,"• Отсутствия или неисправности технических средств и средств защиты"]
[null,null,"• Во всех перечисленных случаях ","Правильный_ответ"]
[]
[null,null,"223.  Какие мероприятия не относятся к организационным, обеспечивающим безопасность работ в электроустановках?"]
[null,null,"• Выдача разрешения на подготовку рабочего места и на допуск к работе"]
[null,null,"• Оформление работ нарядом-допуском, распоряжением или перечнем работ, выполняемых в порядке текущей эксплуатации_"]
[null,null,"• Допуск к работе, надзор во время работы, оформление перерыва в работе, перевода на другое место, окончания работы"]
[null,null,"• Производство необходимых отключений и принятие мер, препятствующих подаче напряжения на  место работы вследствие ошибочного или самопроизвольного включения коммутационных аппаратов","Правильный_ответ"]
[]
[null,null,"224.  Перечень состояний при которых не оказывается первая помощь в соответствии с приказом Минздрава России от 04.05.2012 N 477н?"]
[null,null,"• Отсутствие сознания, остановка дыхания и кровообращения_"]
[null,null,"• Наружные кровотечения, травмы различных областей тела"]
[null,null,"• Степень сильного алкогольного опьянения, нарушение координации ","Правильный_ответ"]
[]
[]
[null,null,"225.  Какая должна быть длина гибкого кабеля, соединяющего источник сварочного тока и коммутационный аппарат?"]
[null,null,"• Не больше 15 м ","Правильный_ответ"]
[null,null,"• Не больше 30 м"]
[null,null,"• Не больше 10 м"]
[]
[]
[null,null,"226.  Какие работы должны быть проведены в организации до вывода основного оборудования электроустановок в ремонт?"]
[null,null,"• Нужно составить ведомости объема работ и смету, график ремонтных работ и подготовить техническую документацию_"]
[null,null,"• Заготовить необходимые материалы и запасные масти, привести в исправное состояние х подручные инструменты и приспособления"]
[null,null,"• Подготовить рабочие места для ремонта, произвести планировку площадки с указанием размещения частей и деталей"]
[null,null,"• Укомплектовать и проинструктировать ремонтные бригады"]
[null,null,"• Необходимо провести все перечисленные подготовительные работы ","Правильный_ответ"]
[null,null,"227.  Что находится в оперативном ведении старшего работника из числа оперативного персонала?"]
[null,null,"• Оборудование и ЛЭП, токопроводы"]
[null,null,"• Устройства релейной защиты, аппаратура системы противоаварийной и режимной автоматики"]
[null,null,"• Средства диспетчерского и технологического управления_"]
[null,null,"• Все перечисленные устройства и оборудование, операции с которыми не требуют  координации действий персонала разных энергетических объектов","Правильный_ответ"]
[]
[null,null,"228.  Какие обязательные формы работы с персоналом не осуществляются для административно- технического персонала?"]
[null,null,"• Предэкзаменационная подготовка и проверка знаний"]
[null,null,"• Производственный инструктаж"]
[null,null,"• Противоаварийные тренировки ","Правильный_ответ"]
[]
[]
[null,null,"229.  Каким должно быть минимальное расстояние в свету от кабеля, проложенного непосредственно в земле, до фундаментов зданий и сооружений?"]
[null,null,"• 0,4 м"]
[null,null,"• 0,5 м"]
[null,null,"• 0,6 м ","Правильный_ответ"]
[]
[]
[null,null,"230. . Какой индекс необходимо указывать при заполнении графы «наименование работ» в поле «Свидетельство на право проведения специальных работ» в удостоверении работника, допущенного к работам под напряжением на токоведущих частях в электроустановках 6-20 кВ?"]
[null,null,"• И1_"]
[null,null,"• И2"]
[null,null,"• ИЗ ","Правильный_ответ"]
[]
[]
[null,null,"231.  В каких случаях проводится внеплановый производственный инструктаж?"]
[null,null,"• При принятии новой или внесении изменений в действующую инструктивно-техническую документацию диспетчерских центров субъекта оперативно-диспетчерского управления, инструктивную документацию организации по вопросам_"]
[null,null,"• При внесении изменений в действующие отраслевые акты в сфере электроэнергетики (для персонала объектов по производству электрической энергии, функционирующих в режиме комбинированной выработки электрической и тепловой энергии, - также в сфере теплоснабжения), являющиеся обязательными для использования в работе и исполнения согласно должностным обязанностям (трудовым функциям) работника"]
[null,null,"• По решению руководителя или иного уполномоченного должностного лица организации (ее филиала, представительства) при установлении нарушений работниками требований отраслевых актов и (или) инструктивно-технических документов"]
[null,null,"• В случае непрохождения работником планового производственного инструктажа (по темам пропущенного инструктажа)"]
[null,null,"• Во всех перечисленных случаях","Правильный_ответ"]
[null,null,"232.  Как должны маркироваться средства защиты, не выдержавшие испытания?"]
[null,null,"• Штамп испытания должен быть перечеркнут красной краской","Правильный_ответ"]
[null,null,"• Штамп испытания должен быть перечеркнут черной краской"]
[null,null,"• Штамп испытания должен быть перечеркнут белой краской"]
[null,null,"• Средство защиты должно быть механически повреждено"]
[]
[null,null,"233.  На какие виды ремонтов основного оборудования электроустановок должны составляться годовые планы (графики)?"]
[null,null,"• На текущие ремонты"]
[null,null,"• На капитальные ремонты_"]
[null,null,"• На планово-предупредительные ремонты"]
[null,null,"• На все виды ремонтов","Правильный_ответ"]
[]
[null,null,"234.  Что, согласно Правилам устройства электроустановок, называется распределительной сетью?"]
[null,null,"• Сеть от распределительного устройства подстанции или ответвления от воздушных линий электропередачи до ВУ, ВРУ, ГРЩ"]
[null,null,"• Сеть от ВУ ВРУ ГРЩ до распределительных пунктов, щитков и пунктов питания наружного  освещения","Правильный_ответ"]
[null,null,"• Сеть от щитков до светильников, штепсельных розеток и других электроприемников"]
[null,null,"• Система, осуществляющая последовательное включение (отключение) участков групповой сети наружного освещения"]
[]
[null,null,"235.  Как часто должны проводиться осмотры кабельных колодцев линий напряжением до 35 кВ?"]
[null,null,"• Не реже 1 раза в 3 месяца"]
[null,null,"• Не реже 1 раза в 6 месяцев"]
[null,null,"• Не реже 1 раза в год"]
[null,null,"• Не реже 1 раза в 2 года ","Правильный_ответ"]
[]
[null,null,"236.  С какой периодичностью должны проводиться плановые производственные инструктажи для ремонтного персонала?"]
[null,null,"• 1 раз в 3 месяца ","Правильный_ответ"]
[null,null,"• 1 раз в 12 месяцев"]
[null,null,"• 1 раз в 6 месяцев"]
[null,null,"• 1 раз в 4 месяца"]
[]
[null,null,"237.  Каким образом должно оформляться согласование работ, выполняемых в месте проведения работ по другому наряду-допуску?"]
[null,null,"• Согласование обсуждается в устной форме между производителем работ и допускающим после подготовки рабочего места по второму наряду - допуску"]
[null,null,"• Время и способ согласования определяет ответственный руководитель работ"]
[null,null,"• Выполнение работ в месте проведения работ по другому наряду должно проводиться под наблюдением ответственного руководителя_"]
[null,null,"• Согласование оформляется до начала подготовки рабочего места по второму наряд  -допуску записью «Согласовано» на лицевой стороне второго наряд - допуска, располагаемой в левом нижнем поле документа с подписями работников, согласующих документ","Правильный_ответ"]
[]
[null,null,"238.  Что из перечисленного не входит в обязанности ответственного за электрохозяйство?"]
[null,null,"• Контроль наличия, своевременности проверок и испытаний средств защиты в электроустановках, средств пожаротушения и инструмента"]
[null,null,"• Организация проведения расчетов потребности Потребителя в электрической энергии и осуществление контроля за ее расходованием"]
[null,null,"• Непосредственное обслуживание электроустановок ","Правильный_ответ"]
[null,null,"• Организация разработки и ведения необходимой документации по вопросам организации эксплуатации электроустановок"]
[]
[null,null,"239.  У кого могут быть на учете ключи от электроустановок, не имеющих местного оперативного персонала? Выберите два правильных варианта ответа."]
[null,null,"• У административно-технического персонала у"]
[null,null,"• У руководящих работников и специалистов организации ","Правильный_ответ"]
[null,null,"• У специалистов по охране труда организации"]
[]
[]
[null,null,"240. . К какой категории, согласно Правилам устройства электроустановок, относятся электроприемники, бесперебойная работа которых необходима для безаварийного останова производства с целью предотвращения угрозы жизни людей, взрывов и пожаров?"]
[null,null,"• К первой категории_"]
[null,null,"• К особой группе первой категории ","Правильный_ответ"]
[null,null,"• Ко второй категории"]
[null,null,"• К третьей категории"]
[]
[null,null,"241.  Какие работники могут выполнять единоличный осмотр электроустановок, электротехнической части технологического оборудования напряжением до 1000 В?"]
[null,null,"• Работник из числа ремонтного персонала, имеющий группу не ниже III"]
[null,null,"• Работник из числа административно-технического персонала, имеющий группу IV"]
[null,null,"• Работник, имеющий группу III и право единоличного осмотра на основании письменного распоряжения руководителя организации_"]
[null,null,"• Работник из числа оперативного персонала, имеющий группу по электробезопасности не  ниже III, осуществляющий оперативное обслуживание данной электроустановки, находящийся на дежурстве, либо работник из числа административно-технического персонала, на которого возложены обязанности по организации технического и оперативного обслуживания, проведения ремонтных, монтажных и наладочных работ в электроустановках (далее -административно-технический персонал), имеющий группу IV       по электробезопасности","Правильный_ответ"]
[]
[null,null,"242.  Что используется при присоединении переносной или передвижной электросварочной установки непосредственно к стационарной электрической сети?"]
[null,null,"• Автоматический выключатель и предохранители_"]
[null,null,"• Коммутационный и защитный аппараты (аппарат) с разборными или разъемными  контактными соединениями","Правильный_ответ"]
[null,null,"• Измерительный прибор"]
[]
[]
[null,null,"243.  Какая группа по электробезопасности должна быть у председателя комиссии по проверке знаний персонала организации с электроустановками до 1000 В?"]
[null,null,"• Группа II_"]
[null,null,"• Группа III"]
[null,null,"• Группа IV ","Правильный_ответ"]
[null,null,"• Группа V"]
[]
[null,null,"244.  При каком условии разрешается использовать запас воды, предназначенный для нужд пожаротушения?"]
[null,null,"• При условии, что вода используется для хозяйственных нужд в количестве не более 10 литров"]
[null,null,"• При условии, что вода используется для производственных целей с последующим восстановлением израсходованного количества воды_"]
[null,null,"• При условии, что вода используется для производственных целей в случае аварийного прекращения подачи воды по трубопроводу"]
[null,null,"• Использование для хозяйственных и (или) производственных целей запас воды  предназначенный для нужд пожаротушения, запрещается","Правильный_ответ"]
[]
[null,null,"245.  Какая продолжительность дублирования конкретного работника при подготовке по новой должности?"]
[null,null,"• Не менее 5 рабочих смен_"]
[null,null,"• Не менее 7 рабочих смен"]
[null,null,"• Не менее 12 рабочих смен у","Правильный_ответ"]
[null,null,"• Не менее 4 рабочих смен"]
[]
[null,null,"246.  В каком из перечисленных случаев производитель работ должен иметь IV группу по электробезопасности?"]
[null,null,"• При выполнении работ по наряду в электроустановках напряжением выше 1000 В"]
[null,null,"• При выполнении работ в подземных сооружениях, где возможно появление вредных газов_"]
[null,null,"• При выполнении работ по перетяжке и замене проводов на ВЛ напряжением до 1000 В, подвешенных на опорах ВЛ напряжением выше 1000 В"]
[null,null,"• В любом из перечисленных случаев ","Правильный_ответ"]
[]
[null,null,"247.  Кто инструктирует бригаду по вопросам использования инструмента и приспособлений?"]
[null,null,"• Ответственный руководитель работ"]
[null,null,"• Производитель работ ","Правильный_ответ"]
[null,null,"• Допускающий"]
[]
[]
[null,null,"248.  Что представляет собой система IT для электроустановок напряжением до 1 кВ?"]
[null,null,"• Система, в которой нулевой защитный и нулевой рабочий проводники совмещены в одном проводнике на всем ее протяжении"]
[null,null,"• Система, в которой нейтраль источника питания глухо заземлена, а открытые проводящие части электроустановки присоединены к глухозаземленной нейтрали источника посредством нулевых защитных проводников_"]
[null,null,"• Система, в которой нейтраль источника питания изолирована от земли, либо заземлена  через приборы или устройства, имеющие большое сопротивление, а открытые проводящие части электроустановки заземлены","Правильный_ответ"]
[null,null,"• Система, в которой нулевой защитный и нулевой рабочий проводники разделены на всем ее протяжении"]
[]
[null,null,"249.  Можно ли использовать землю в качестве фазного или нулевого провода в электроустановках до 1000 В?"]
[null,null,"• Разрешается без ограничений"]
[null,null,"• Правилами технической эксплуатации электроустановок потребителей запрещается ","Правильный_ответ"]
[null,null,"• Разрешается только в единичных случаях с разрешения органов энергонадзора"]
[]
[]
[null,null,"250. . Каким должно быть расстояние в свету между кабелем и стенкой канала теплопровода при прокладке кабельной линии параллельно с теплопроводом?"]
[null,null,"• Не менее 0;5 м_"]
[null,null,"• Не менее 1,0 м"]
[null,null,"• Не менее 2,0 м ","Правильный_ответ"]
[]
[]
[null,null,"251.  Какую периодичность пересмотра инструкций и схем обязан обеспечить ответственный за электрохозяйство?"]
[null,null,"• Не реже 1 раза в год"]
[null,null,"• Не реже 1 раза в 2 года"]
[null,null,"• Не реже 1 раза в 3 года ","Правильный_ответ"]
[null,null,"• Не реже 1 раза в 5 лет"]
[]
[null,null,"252.  Что может использоваться в качестве РЕ-проводников в электроустановках напряжением до 1000 В?"]
[null,null,"• Стальные трубы электропроводок ","Правильный_ответ"]
[null,null,"• Свинцовые оболочки проводов и кабелей"]
[null,null,"• Водопроводные трубы при наличии в них изолирующих вставок"]
[null,null,"• Трубы канализации и центрального отопления"]
[]
[null,null,"253.  На кого возложена обязанность по составлению годовых планов (графиков) по ремонту основного оборудования электроустановок?"]
[null,null,"• На технического руководителя организации"]
[null,null,"• На ответственного за электрохозяйство","Правильный_ответ"]
[null,null,"• На оперативный персонал Потребителя"]
[null,null,"• На административно-технический персонал Потребителя"]
[]
[null,null,"254.  Каким образом выставляется итоговая оценка при прохождении проверки знаний с использованием программного обеспечения и получения неудовлетворительной оценки автоэкзаменатора?"]
[null,null,"• Устанавливаться комиссией по проверке знаний по результатам устного опроса работника ","Правильный_ответ"]
[null,null,"• Проводится дополнительное тестирование знаний с использованием программного обеспечения через 3 дня_"]
[null,null,"• Проводится дополнительное тестирование знаний с использованием программного обеспечения через 7 дней"]
[null,null,"• Проводится дополнительное тестирование знаний с использованием программного обеспечения через 10 дней"]
[]
[null,null,"255.  С какой периодичностью на объектах с массовым пребыванием людей должны проводиться практические тренировки по эвакуации людей при пожаре?"]
[null,null,"• Не реже 1 раза в полугодие ","Правильный_ответ"]
[null,null,"• Не реже 1 раза в 9 месяцев"]
[null,null,"• Не реже 1 раза в год"]
[null,null,"• Не реже 1 раза в 3 месяца"]
[]
[null,null,"256.  Какие данные должны быть указаны на бирках кабелей в начале и конце линии?"]
[null,null,"• Только марка и напряжение"]
[null,null,"• Только сечение кабеля и напряжение"]
[null,null,"• Только номер или наименование линии_"]
[null,null,"• Марка, напряжение, сечение, номер или наименование линии","Правильный_ответ"]
[]
[null,null,"257.  Что включает в себя понятие «Наряд-допуск»?"]
[null,null,"• Задание на производство работы, устанавливающее условия безопасного проведения работы, состав бригады и ответственных исполнителей"]
[null,null,"• Задание на производство работы, определяющее содержание, место работы и условия безопасного проведения"]
[null,null,"• Задание на производство работы, оформленное на специальном бланке установленной формы и определяющее содержание, место работы, время ее начала и окончания_"]
[null,null,"• Задание на производство работы, оформленное на специальном бланке установленной  формы и определяющее содержание, место работы, время ее начала и окончания, условия безопасного проведения, состав бригады и работников, ответственных за безопасное выполнение","Правильный_ответ"]
[]
[null,null,"258.  В каком случае удостоверение о проверке знаний правил работы в электроустановках подлежит замене?"]
[null,null,"• По истечении срока действия группы по электробезопасности"]
[null,null,"• В случае утери удостоверения"]
[null,null,"• При повышении группы по электробезопасности"]
[null,null,"• В случае изменения должности","Правильный_ответ"]
[]
[null,null,"259.  При каком значении процентного отношения правильных ответов к общему количеству вопросов считается «неудовлетворительно» при проверке знаний работника?"]
[null,null,"• Менее 30 % ","Правильный_ответ"]
[null,null,"• Менее 20 %"]
[null,null,"• Менее 40 %"]
[null,null,"• Менее 50 %"]
[]
[null,null,"260. . Какие рабочие места предусмотрены во время стажировки для оперативного, оперативно- ремонтного персонала?"]
[null,null,"• Свое рабочее место и (или) рабочие места оперативного персонала объектов у электроэнергетики такой организации, определенные программой подготовки по новой должности","Правильный_ответ"]
[null,null,"• Рабочее место в своем диспетчерском центре, а также рабочее место диспетчера в полнофункциональном резервном диспетчерском центре (при его наличии)"]
[null,null,"• Свое рабочее место и (или) специально оборудованные полигоны и мастерские"]
[]
[]
[null,null,"261.  Когда допускается переход кабелей из блоков в землю без кабельных колодцев?"]
[null,null,"• При числе кабелей до 10 и напряжении не выше 35 кВ ","Правильный_ответ"]
[null,null,"• При числе кабелей более 10 и напряжением выше 35 кВ_"]
[null,null,"• Не допускается без кабельных колодцев осуществлять переход кабелей из блоков в землю"]
[]
[]
[null,null,"262.  В каком случае, в дополнение к плану эвакуации, должна быть разработана инструкция, определяющая действие персонала по эвакуации людей?"]
[null,null,"• На объектах с массовым пребыванием людей ","Правильный_ответ"]
[null,null,"• На объектах с постоянным пребыванием людей в количестве 40 человек"]
[null,null,"• На объектах с постоянным пребыванием людей в количестве 30 человек_"]
[null,null,"• На объектах с постоянным пребыванием людей в количестве 20 и более человек"]
[]
[null,null,"263.  Когда проводится внеочередная проверка знаний персонала?"]
[null,null,"• При введении в действие у Потребителя новых или переработанных норм и правил"]
[null,null,"• По требованию органов государственного надзора и контроля_"]
[null,null,"• При проверке знаний после получения неудовлетворительной оценки"]
[null,null,"• При перерыве в работе в данной должности более 6 месяцев"]
[null,null,"• В любом из перечисленных случаев ","Правильный_ответ"]
[null,null,"264.  Перечислите мероприятия по обзорному осмотру пострадавшего и временной остановке наружного кровотечения (приказ Минздрава России от 04.05.2012 N 477н)."]
[null,null,"• 1) Прижать к ране сложенную чистую ткань или бинт; 2) уложить пострадавшего в горизонтальное положение; 3) использовать пальцевое прижатие раны; 4) фиксировать повязку косынкой, платком или шапкой-ушанкой_"]
[null,null,"• 1) Осмотр пострадавшего на наличие кровотечений; 2) проведение осмотра конечностей; 3) наложение повязок при травмах различных областей тела; 4) придание пострадавшему оптимального положения тела"]
[null,null,"• 1) Обзорный осмотр пострадавшего на наличие кровотечений; 2) пальцевое прижатие артерии;  3) наложение жгута; 4) максимальное сгибание конечности в суставе; 5) прямое давление на   рану; 6) наложение давящей повязки","Правильный_ответ"]
[]
[]
[null,null,"265.  Какие из перечисленных функций не входят в обязанности наблюдающего?"]
[null,null,"• Отвечает за качественный и количественный состав бригады ","Правильный_ответ"]
[null,null,"• Отвечает за четкость и полноту целевого инструктажа членов бригады"]
[null,null,"• Отвечает за наличие и сохранность установленных на рабочем месте заземлений, ограждений, плакатов и знаков безопасности, запирающих устройств приводов_"]
[null,null,"• Отвечает за безопасность членов бригады в отношении поражения электрическим током электроустановки"]
[]
[null,null,"266.  Что является определением термина «Защита от прямого прикосновения»?"]
[null,null,"• Защита от поражения электрическим током при прикосновении к открытым проводящим частям, оказавшимся под напряжением, при повреждении изоляции"]
[null,null,"• Защита людей или животных от электрического контакта с открытыми проводящими частями"]
[null,null,"• Защита для предотвращения прикосновения ктоковедущим частям, находящимся под  напряжением","Правильный_ответ"]
[]
[]
[null,null,"267.  Как часто должна проводиться периодическая проверка переносных и передвижных электроприемников?"]
[null,null,"• Не реже 1 раза в месяц_"]
[null,null,"• Не реже 1 раза в 3 месяца"]
[null,null,"• Не реже 1 раза в 6 месяцев ","Правильный_ответ"]
[]
[]
[null,null,"268.  Кому проводит целевой инструктаж, предусматривающий указания по безопасному выполнению конкретной работы, отдающий распоряжение?"]
[null,null,"• Допускающему и членам бригады (исполнителям)_"]
[null,null,"• Производителю (наблюдающему) или непосредственному исполнителю работ","Правильный_ответ"]
[null,null,"• Ответственному руководителю и производителю работ"]
[null,null,"• Производителю работ (наблюдающему) и допускающему"]
[]
[null,null,"269.  От каких факторов зависит необходимость и длительность каждого этапа подготовки по новой должности оперативного персонала?"]
[null,null,"• От уровня профессионального образования работника и уровня его знаний"]
[null,null,"• От стажа практической работы по смежным должностям"]
[null,null,"• От технической сложности объекта"]
[null,null,"• От всего перечисленного","Правильный_ответ"]
[]
[null,null,"270. . Какая ответственность предусмотрена за нарушение Правил технической эксплуатации электроустановок потребителей?"]
[null,null,"• Уголовная"]
[null,null,"• Административная"]
[null,null,"• Дисциплинарная_"]
[null,null,"• В соответствии с действующим законодательством Российской Федерации ","Правильный_ответ"]
[]
[null,null,"271.  Каким образом должны быть обозначены нулевые рабочие (нейтральные) проводники в электроустановках?"]
[null,null,"• Буквой N и голубым цветом ","Правильный_ответ"]
[null,null,"• Буквой N и белым цветом"]
[null,null,"• Буквой Н и голубым цветом"]
[null,null,"• Буквой Н и серым цветом"]
[]
[null,null,"272.  Где проходят проверку знаний по электробезопасности члены комиссий структурных подразделений организации?"]
[null,null,"• В соответствующей комиссии Ростехнадзора"]
[null,null,"• В центральной комиссии Потребителя ","Правильный_ответ"]
[null,null,"• В комиссии обучающей организации"]
[null,null,"• В комиссии, указанной Ростехнадзором"]
[]
[null,null,"273.  Что является определением термина «Двойная изоляция»?"]
[null,null,"• Изоляция в электроустановках напряжением до 1 кВ, состоящая из основной и дополнительной  изоляции","Правильный_ответ"]
[null,null,"• Независимая изоляция в электроустановках напряжением до 1 кВ, выполняемая х дополнительно к основной изоляции для защиты при косвенном прикосновении"]
[null,null,"• Изоляция в электроустановках напряжением до 1 кВ, обеспечивающая степень защиты от поражения электрическим током, равноценную двойной изоляции"]
[]
[]
[null,null,"274.  Какие из перечисленных изолирующих электрозащитных средств относятся к дополнительным изолирующим электрозащитным средствам для электроустановок напряжением до 1000 В?"]
[null,null,"• Изолирующие клещи"]
[null,null,"• Указатели напряжения_"]
[null,null,"• Изолирующие штанги всех видов"]
[null,null,"• Диэлектрические галоши","Правильный_ответ"]
[]
[null,null,"275.  С какой периодичностью должно проводиться длительное периодическое обучение работников, относящихся к категориям административно-технического, диспетчерского, оперативного, оперативно- ремонтного и ремонтного персонала?"]
[null,null,"• По мере необходимости, но не реже 1 раза в 3 года"]
[null,null,"• Не реже 1 раза в 5 лет ","Правильный_ответ"]
[null,null,"• В зависимости от образования и стажа работника по решению руководителя организации, а для самих руководителей по решению вышестоящей организации"]
[]
[]
[null,null,"276.  Каковы условия применения электроинструмента класса II в особо опасных помещениях?"]
[null,null,"• Без применения электрозащитных средств при подключении через устройство х защитного отключения"]
[null,null,"• Без применения электрозащитных средств","Правильный_ответ"]
[null,null,"• С применением хотя бы одного электрозащитного средства"]
[null,null,"• Не допускается применять"]
[]
[null,null,"277.  На какой срок разрешается выдавать наряд-допуск со дня начала работ в действующих электроустановках?"]
[null,null,"• На срок не более 15 календарных дней ","Правильный_ответ"]
[null,null,"• На срок не более 10 календарных дней"]
[null,null,"• На срок не более 20 календарных дней"]
[null,null,"• На срок не более 25 календарных дней"]
[]
[null,null,"278.  В каких целях допускается приближение на расстояние менее 8 метров к месту возникновения короткого замыкания на землю при работах на воздушной линии электропередачи?"]
[null,null,"• Только для оказания доврачебной помощи людям, попавшим под напряжение"]
[null,null,"• Только для определения визуального расстояния до опоры воздушной линии_"]
[null,null,"• Только для оперативных переключений с целью ликвидации замыкания и освобождения  людей, попавших под напряжение","Правильный_ответ"]
[]
[]
[null,null,"279.  Какое из положений не соответствует требованиям Правил к содержанию помещений распределительных устройств?"]
[null,null,"• В помещениях РУ двери, окна должны быть всегда закрыты, а проемы в перегородках между аппаратами, содержащими масло, заделаны"]
[null,null,"• Для предотвращения попадания животных и птиц все отверстия и проемы в наружных стенах помещений закрываются сетками с размером ячейки (1x1) см_"]
[null,null,"• Токоведущие части пускорегулирующих аппаратов и аппаратов защиты должны быть ограждены от случайных прикосновений"]
[null,null,"• Дубликаты ключей от электропомещений должны храниться в операторных соответствующих ч/ установок","Правильный_ответ"]
[]
[null,null,"280. . Что является определением термина «Глухозаземленная нейтраль»?"]
[null,null,"• Нейтраль трансформатора или генератора, не присоединенная к заземляющему х устройству или присоединенная к нему через большое сопротивление приборов сигнализации, измерения, защиты и других аналогичных им устройств"]
[null,null,"• Нейтраль трансформатора или генератора, присоединенная к заземляющему устройству ч/ непосредственно","Правильный_ответ"]
[null,null,"• Нейтраль трансформатора или генератора, присоединенная к заземляющему устройству через активные токоограничивающие сопротивления"]
[]
[]
[null,null,"281.  Кто относится к административно-техническому персоналу?"]
[null,null,"• Работники, осуществляющие оперативное управление и обслуживание электроустановок_"]
[null,null,"• Руководители и специалисты, на которых возложены обязанности по организации у технического и оперативного обслуживания, проведения ремонтных, монтажных и наладочных работ в электроустановках","Правильный_ответ"]
[null,null,"• Работники, специально обученные и подготовленные для оперативного обслуживания в утвержденном объеме закрепленных за ним электроустановок"]
[]
[]
[null,null,"282.  Как часто должны пересматриваться производственные инструкции по эксплуатации электроустановок?"]
[null,null,"• Периодически, 1 раз в год_"]
[null,null,"• В случае изменений условий эксплуатации, но не реже 1 раза в 3 года","Правильный_ответ"]
[null,null,"• Периодически, но не реже 1 раза в 5 лет"]
[]
[]
[null,null,"283.  Допускается ли в кабельном сооружении иметь один выход?"]
[null,null,"• Допускается"]
[null,null,"• Не допускается_"]
[null,null,"• Допускается, но только при длине кабельного сооружения не более 25 м","Правильный_ответ"]
[null,null,"• Допускается, но только при длине кабельного сооружения не менее 50 м"]
[]
[null,null,"284.  Какова периодичность осмотров заземляющих устройств с выборочным вскрытием грунта?"]
[null,null,"• По графику, но не реже 1 раза в год"]
[null,null,"• По графику, но не реже 1 раза в 3 года_"]
[null,null,"• По графику, но не реже 1 раза в 6 лет"]
[null,null,"• По графику, но не реже 1 раза в 9 лет"]
[null,null,"• По графику, но не реже 1 раза в 12 лет ","Правильный_ответ"]
[null,null,"285.  Укажите, в какие сроки проводится проверка знаний вновь назначенных на должность работников, относящихся к категории административно-технического персонала или вспомогательного персонала?"]
[null,null,"• Не позднее 1 месяца после назначения на должность ","Правильный_ответ"]
[null,null,"• Не позднее срока, определенного программой подготовки на должность вновь назначенного работника_"]
[null,null,"• Не позднее срока, определенного приказом по предприятию в зависимости от квалификации вновь назначенного работника"]
[]
[]
[null,null,"286.  Какие из перечисленных мероприятий необходимо учитывать при оформлении перечня работ, выполняемых в порядке текущей эксплуатации?"]
[null,null,"• Только условия безопасности и возможности единоличного выполнения конкретных работ"]
[null,null,"• Только квалификацию персонала_"]
[null,null,"• Только степень важности электроустановки в целом или ее отдельных элементов в технологическом процессе"]
[null,null,"• Необходимо учитывать все перечисленные мероприятия ","Правильный_ответ"]
[]
[null,null,"287.  Допускается ли закреплять строп страховочной привязи поддерживающих и натяжных многоцепных изолирующих подвесках за гирлянду изолятора?"]
[null,null,"• Допускается закреплять за одну из гирлянд изоляторов, на которой работа не ведется ","Правильный_ответ"]
[null,null,"• Допускается закреплять за любую гирлянду"]
[null,null,"• Не допускается"]
[]
[]
[null,null,"288.  В течение, какого срока проводится комплексное опробование работы линии электропередачи пере приемкой в эксплуатацию?"]
[null,null,"• В течение 24 часов ","Правильный_ответ"]
[null,null,"• В течение 48 часов"]
[null,null,"• В течение 72 часов"]
[null,null,"• В течение 36 часов"]
[]
[null,null,"289.  Какое минимальное количество источников питания, согласно Правилам устройства электроустановок, должно обеспечивать электроэнергией электроприемники третьей категории в нормальных режимах при условии, что перерывы электроснабжения, необходимые для ремонта или замены поврежденного элемента системы электроснабжения, не превышаю 1 суток?"]
[null,null,"• 1 источник питания ","Правильный_ответ"]
[null,null,"• 2 источника питания"]
[null,null,"• 3 источника питания"]
[null,null,"• 4 источника питания"]
[]
[null,null,"290. . Что, согласно Правилам устройства электроустановок, может применяться для питания групп светильников вместо групповых щитков при использовании шинопроводов в качестве линий питающей осветительной сети?"]
[null,null,"• Индивидуальные модульные учетно-распределительные щитки_"]
[null,null,"• Только присоединяемые к шинопроводу отдельные аппараты защиты"]
[null,null,"• Только присоединяемые к шинопроводу отдельные аппараты управления"]
[null,null,"• Присоединяемые к шинопроводу отдельные аппараты защиты и управления ","Правильный_ответ"]
[]
[null,null,"291.  Какие существуют возрастные ограничения для присвоения III группы по электробезопасности?"]
[null,null,"• Никаких ограничений по возрасту нет_"]
[null,null,"• Группа III может присваиваться работникам только по достижении 16-летнего возраста"]
[null,null,"• Группа III может присваиваться работникам только по достижении 18-летнего возраста ","Правильный_ответ"]
[null,null,"• Группа III может присваиваться работникам только по достижении 21-летнего возраста"]
[]
[null,null,"292.  В каких случаях не проводится дублирование?"]
[null,null,"• При подготовке по новой должности - после проверки знаний_"]
[null,null,"• После перерыва в работе более 30 календарных дней, но менее 60 календарных дней - в случаях, установленных порядком проведения работы с персоналом, принятым в организации"]
[null,null,"• После перерыва в работе от 60 календарных дней до 6 месяцев"]
[null,null,"• После перерыва в работе 20 календарных дней до 1 месяца ","Правильный_ответ"]
[]
[null,null,"293.  На основании чего, согласно Правилам устройства электроустановок, определяются категории электроприемников по надежности электроснабжения в процессе проектирования системы электроснабжения?"]
[null,null,"• На основании загруженности электрической сети и перегрузочной способности элементов электроприемников_"]
[null,null,"• На основании нормативной документации и технологической части проекта ","Правильный_ответ"]
[null,null,"• На основании возможности технологического резервирования и текущего режима, в котором находится потребитель электрической энергии"]
[null,null,"• На основании требований соответствующих глав ПУЭ и применяющегося режима заземления нейтралей"]
[]
[null,null,"294.  Что из перечисленного не входит в комплект документации, хранящейся на рабочем месте оперативного персонала?"]
[null,null,"• Журнал учета работ по нарядам и распоряжениям"]
[null,null,"• Журнал релейной защиты, автоматики и телемеханики_"]
[null,null,"• Списки работников, имеющих право выполнения оперативных переключений, ведения оперативных переговоров и единоличного осмотра электроустановок"]
[null,null,"• Журнал регистрации вводного инструктажа ","Правильный_ответ"]
[null,null,"• Перечень работ, выполняемых в порядке текущей эксплуатации"]
[null,null,"295.  Кто несет ответственность за действия работника, допущенного к дублированию на рабочем месте?"]
[null,null,"• Сам работник, допущенный к дублированию, так и работник, под руководством и  контролем которого проводится дублирование","Правильный_ответ"]
[null,null,"• Только сам работник"]
[null,null,"• Руководитель организации"]
[null,null,"• Инспектор Ростехнадзора"]
[]
[null,null,"296.  При каком количестве людей, единовременно находящихся на этаже здания сооружения, должны быть вывешены на видных местах планы эвакуации людей?"]
[null,null,"• 10 и более человек","Правильный_ответ"]
[null,null,"• 8 и более человек"]
[null,null,"• 5 и более человек"]
[]
[]
[null,null,"297.  За что несут персональную ответственность руководитель и специалисты энергетической службы?"]
[null,null,"• За невыполнение требований, предусмотренных Правилами и должностными инструкциями"]
[null,null,"• За неправильную ликвидацию ими нарушений в работе электроустановок на обслуживаемом участке_"]
[null,null,"• За нарушения в работе электроустановок из-за несвоевременного и у неудовлетворительного технического обслуживания и невыполнения противоаварийных мероприятий","Правильный_ответ"]
[null,null,"• За нарушения в эксплуатации электротехнологического оборудования"]
[]
[null,null,"298.  Каким образом должно быть выполнено присоединение заземляющих и нулевых защитных проводников, и проводников уравнивания потенциалов к открытым проводящим частям?"]
[null,null,"• Только при помощи сварки"]
[null,null,"• При помощи болтовых соединений или сварки ","Правильный_ответ"]
[null,null,"• При помощи болтовых соединений или гибких проводников"]
[]
[]
[null,null,"299.  Что недопустимо при выполнении работ под напряжением в электроустановках напряжением до 1000 В?"]
[null,null,"• Ограждать токоведущие части, находящиеся под напряжением, к которым возможно случайное прикосновение"]
[null,null,"• Пользоваться изолированным инструментом, применять диэлектрические галоши и перчатки_"]
[null,null,"• Работать в одежде с короткими или засученными рукавами, а также использовать  ножовки, напильники, металлические метры и другие металлические инструменты и приспособления, не предназначенные для выполнения работ под напряжением","Правильный_ответ"]
[]
[]
[null,null,"300. . Когда допускается выдавать один наряд-допуск для одновременного или поочередного выполнения работ на разных рабочих местах одной электроустановки?"]
[null,null,"• Для работы на электродвигателях одного напряжения и присоединениях одного РУ ","Правильный_ответ"]
[null,null,"• Для выполнения ремонта и обслуживания устройств проводной радио- и телефонной связи"]
[null,null,"• Для работы по обслуживанию сети наружного освещения"]
[]
[]
[null,null,"301.  Кто относится к оперативному персоналу?"]
[null,null,"• Работники, выполняющие техническое обслуживание и ремонт, монтаж, наладку и испытание электрооборудования"]
[null,null,"• Работники, специально обученные и подготовленные для оперативного обслуживания в утвержденном объеме закрепленных за ним электроустановок"]
[null,null,"• Работники, на которых возложены обязанности по организации технического и оперативного обслуживания, проведения ремонтных, монтажных и наладочных работ в электроустановках_"]
[null,null,"• Работники, уполномоченные субъектом электроэнергетики (потребителем электрической  энергии) на осуществление в установленном порядке действий по изменению технологического режима работы и эксплуатационного состояния линий электропередачи, оборудования и устройств с правом непосредственного воздействия     на органы управления оборудования и устройств релейной защиты и автоматики при осуществлении оперативно-технологического управления, в том числе с использованием средств дистанционного управления, на принадлежащих такому субъекту электроэнергетики (потребителю электрической энергии) на праве собственности или ином законном основании объектах электроэнергетики (энергопринимающих установках)","Правильный_ответ"]
[]
[null,null,"302.  С какой периодичностью в распределительных электрических сетях напряжением до 20 кВ"]
[null,null,"включительно производят измерения нагрузок и напряжений трансформаторов?"]
[null,null,"• В первый год эксплуатации не менее 2 раз - в период максимальных и минимальных нагрузок, в  дальнейшем - по необходимости","Правильный_ответ"]
[null,null,"• В первый год эксплуатации - в период максимальных нагрузок, в дальнейшем - по необходимости"]
[null,null,"• В первый год эксплуатации - в период максимальных нагрузок, во второй год - в период х минимальных нагрузок, в дальнейшем - по необходимости"]
[]
[null,null,"303.  В каком случае элемент заземлителя должен быть заменен?"]
[null,null,"• Если разрушено более 90 % его сечения"]
[null,null,"• Если разрушено более 80 % его сечения_"]
[null,null,"• Если разрушено более 70 % его сечения"]
[null,null,"• Если разрушено более 60 % его сечения"]
[null,null,"• Если разрушено более 50 % его сечения","Правильный_ответ"]
[null,null,"304.  Какие ознакомительные мероприятия проводятся перед допуском к самостоятельной работе персонала, имевшего перерыв в работе, независимо от проводимых форм подготовки в соответствии с занимаемой должностью?"]
[null,null,"• Ознакомлен с изменениями в оборудовании, схемах и режимах работы энергоустановок"]
[null,null,"• Ознакомлен с введенными в действие (вступившими в силу) новыми отраслевыми актами и инструктивно-техническими документами в сфере электроэнергетики (оперативный, оперативно- ремонтный и ремонтный персонал - также в сфере теплоснабжения), являющимися обязательными для использования в работе и исполнения согласно должностным обязанностям (трудовым функциям) работника_"]
[null,null,"• Ознакомлен с изменениями, внесенными в действующие отраслевые акты и инструктивно-технические документы в сфере электроэнергетики (оперативный, оперативно-ремонтный и ремонтный персонал, - также в сфере теплоснабжения), являющиеся обязательными для использования в работе и исполнения согласно должностным обязанностям (трудовым функциям) работника"]
[null,null,"• Все перечисленное ","Правильный_ответ"]
[]
[null,null,"305.  Что представляет собой система TN-S для электроустановок напряжением до 1 кВ?"]
[null,null,"• Система, в которой нулевой защитный и нулевой рабочий проводники совмещены в одном проводнике на всем ее протяжении"]
[null,null,"• Система, в которой нейтраль источника питания глухо заземлена, а открытые проводящие части электроустановки присоединены к глухозаземленной нейтрали источника посредством нулевых защитных проводников_"]
[null,null,"• Система, в которой нейтраль источника питания изолирована от земли, либо заземлена через приборы или устройства, имеющие большое сопротивление, а открытые проводящие части электроустановки заземлены"]
[null,null,"• Система, в которой нулевой защитный и нулевой рабочий проводники разделены на всем ее  протяжении","Правильный_ответ"]
[]
[null,null,"306.  На какие категории подразделяется электротехнический персонал организации?"]
[null,null,"• На административно-технический, оперативный и ремонтный"]
[null,null,"• На оперативный, ремонтный и оперативно-ремонтный_"]
[null,null,"• На административно-технический, оперативно-ремонтный, оперативный и ремонтный ","Правильный_ответ"]
[null,null,"• На административный, ремонтный и оперативный"]
[]
[null,null,"307.  Какой инструктаж должен пройти электротехнический персонал перед началом работ по распоряжению?"]
[null,null,"• Первичный на рабочем месте"]
[null,null,"• Вводный"]
[null,null,"• Целевой ","Правильный_ответ"]
[null,null,"• Повторный"]
[]
[null,null,"308.  За выполнение какой из перечисленных функций не несет ответственность производитель работ?"]
[null,null,"• За соответствие подготовленного рабочего места мероприятиям, необходимым при подготовке рабочих мест и отдельным указаниям наряда - допуска, за четкость и полноту целевого инструктажа членов бригады"]
[null,null,"• За наличие, исправность и правильное применение необходимых средств защиты, инструмента, инвентаря и приспособлений_"]
[null,null,"• За безопасное проведение работы и соблюдение Правил им самим и членами бригады, и за осуществление постоянного контроля за членами бригады"]
[null,null,"• За достаточность и правильность указанных в наряде-допуске (распоряжении) мер безопасности,  за качественный и количественный состав бригады","Правильный_ответ"]
[]
[null,null,"309.  Перечислите мероприятия по проведению сердечно-легочной реанимации до появления признаков жизни, (приказ Минздрава России от 04.05.2012 N 477н)."]
[null,null,"• 1) Давление руками на грудину пострадавшего; 2) искусственное дыхание «Рот ко рту» («Рот к  носу», с использованием устройства для искусственного дыхания)","Правильный_ответ"]
[null,null,"• 1) Освободить грудную клетку от одежды и расстегнуть поясной ремень; 2) прикрыть двумя пальцами мечевидный отросток; 3) нанести удар кулаком по грудине; 4) проверить пульс, при отсутствии пульса перейти к непрямому массажу сердца"]
[null,null,"• 1) Убедиться в отсутствии пульса на сонной артерии; 2) прикрыть двумя пальцами мечевидный отросток нанести удар по грудине; 3) перейти к непрямому массажу сердца; 4) сделать вдох искусственного дыхания"]
[]
[]
[null,null,"310. . Каковы требования Правил по охране труда при эксплуатации электроустановок при выполнении на воздушной линии электропередачи, находящейся под напряжением, работ по удалению с проводов упавших деревьев?"]
[null,null,"• Допускается выполнять с применением изолирующих штанг"]
[null,null,"• Допускается выполнять с применением диэлектрических перчаток"]
[null,null,"• Допускается выполнять с применением диэлектрических перчаток и бот"]
[null,null,"• Работы выполнять не допускается","Правильный_ответ"]
[]
[null,null,"311.  За что несут персональную ответственность работники, непосредственно обслуживающие электроустановки?"]
[null,null,"• За несвоевременное и неудовлетворительное техническое обслуживание электроустановок_"]
[null,null,"• За нарушения, происшедшие по их вине, а также за неправильную ликвидацию ими  нарушений в работе электроустановок на обслуживаемом участке ","Правильный_ответ"]
[null,null,"• За нарушения в работе, вызванные низким качеством ремонта"]
[null,null,"• За нарушения в эксплуатации электротехнологического оборудования"]
[]
[null,null,"312.  Каким образом оформляются результаты проверки знаний персонала по электробезопасности?"]
[null,null,"• Результаты проверки заносятся в журнал установленной формы, персоналу, успешно у прошедшему проверку знаний, выдается удостоверение установленной формы","Правильный_ответ"]
[null,null,"• Результаты проверки заносятся в журнал установленной формы_"]
[null,null,"• Результаты проверки оформляются протоколом установленной формы, персоналу, х успешно прошедшему проверку знаний, выдается удостоверение установленной формы"]
[null,null,"• Результаты проверки заносятся в трудовую книжку и в удостоверение установленной формы, которое выдается персоналу, успешно прошедшему проверку знаний"]
[]
[null,null,"313.  Что не допускается совместно прокладывать в стальных и других механических прочных трубах, рукавах, коробах, лотках и замкнутых каналах строительных конструкций зданий?"]
[null,null,"• Силовые и контрольные кабели цепей нескольких машин, панелей, щитов, пультов, связанных технологическим процессом"]
[null,null,"• Взаиморезервируемые провода и кабели","Правильный_ответ"]
[null,null,"• Провода и кабели цепей нескольких групп одного вида освещения (рабочего или х аварийного) с общим числом проводов в трубе, не более восьми"]
[null,null,"• Провода и кабели осветительных цепей до 42 В с цепями выше 42 В, при условии заключения проводов цепей до 42 В в отдельную изоляционную трубу"]
[]
[null,null,"314.  Укажите последовательность действий по восстановлению проходимости дыхательных путей и определению признаков жизни у пострадавшего, (приказ Минздрава России от 04.05.2012 N 477н)."]
[null,null,"• 1) Удалить слизь и содержимое желудка; 2) приподнять ноги и расстегнуть поясной ремень, при возможности положить холод на живот_"]
[null,null,"• 1) Запрокинуть голову с подъемом подбородка; 2) выдвинуть нижнюю челюсть; 3) определить наличие дыхания с помощью слуха, зрения и осязания; 4) определить наличие кровообращения, проверить пульс на магистральных артериях","Правильный_ответ"]
[null,null,"• 1) Убедиться в отсутствии пульса на сонной артерии;2) убедиться в отсутствии признаков дыхания; 3) освободить грудную клетку от одежды и расстегнуть поясной ремень"]
[]
[]
[null,null,"315.  Допустимо ли пребывание одного или нескольких членов бригады отдельно от производителя работ в случае рассредоточения членов бригады по разным рабочим местам?"]
[null,null,"• Недопустимо в любом случае"]
[null,null,"• Допустимо в любом случае_"]
[null,null,"• Допустимо при наличии у членов бригады III группы по электробезопасности ","Правильный_ответ"]
[null,null,"• Допустимо при проведении соответствующего инструктажа"]
[]
[null,null,"316.  Какая продолжительность дублирования конкретного работника после перерыва в работе более 30 календарных дней?"]
[null,null,"• Не менее 1 рабочей смены","Правильный_ответ"]
[null,null,"• Не менее 7 рабочих смен_"]
[null,null,"• Не менее 12 рабочих смен"]
[null,null,"• Не менее 4 рабочих смен"]
[]
[null,null,"317.  Что из перечисленного должен осуществлять оперативный персонал?"]
[null,null,"• Только контроль правильности положения переключающих устройств на панелях (шкафах) релейной защиты, автоматики и телемеханики и управления_"]
[null,null,"• Только опробование высоковольтных выключателей, устройств автоматического х повторного включения и автоматического включения резерва"]
[null,null,"• Только измерение тока небаланса в защите шин"]
[null,null,"• Оперативный персонал должен осуществлять все перечисленное ","Правильный_ответ"]
[]
[null,null,"318.  При совместном производстве нескольких видов работ, по которым требуется оформление наряда- допуска, допускается ли оформление единого наряда-допуска?"]
[null,null,"• 1 Да ","Правильный_ответ"]
[null,null,"• Нет"]
[]
[]
[]
[null,null,"319.  С какой периодичностью должны проводиться плановые производственные инструктажи для диспетчерского, оперативного и оперативно-ремонтного персонала?"]
[null,null,"• 1 раз в месяц","Правильный_ответ"]
[null,null,"• 1 раз в 3 месяца_"]
[null,null,"• 1 раз в 6 месяцев"]
[null,null,"• 1 раз в 12 месяцев"]
[]
[null,null,"320. . Какое минимальное количество независимых, взаимно резервирующих источников питания, согласно Правилам устройства электроустановок, должно обеспечивать электроэнергией электроприемники особой группы первой категории в нормальных режимах, если перерыв их электроснабжения при нарушении электроснабжения от одного из источников питания может быть допущен лишь на время автоматического восстановления питания?"]
[null,null,"• 2 источника питания"]
[null,null,"• 3 источника питания ","Правильный_ответ"]
[null,null,"• 4 источника питания"]
[null,null,"• 6 источников питания"]
[]
[null,null,"321.  Какой персонал относится к электротехнологическому?"]
[null,null,"• Персонал, который проводит ремонт и обслуживание электроустановок"]
[null,null,"• Персонал, который проводит монтаж, наладку и испытание электротехнологического оборудования"]
[null,null,"• Персонал, который проводит обслуживание электротехнологических установок, и  использует в работе электрические машины, переносной электроинструмент и светильники","Правильный_ответ"]
[null,null,"• Персонал, который не попадает под определение электротехнического"]
[]
[null,null,"322.  Что может быть применено для защиты при косвенном прикосновении в цепях, питающих переносные электроприемники?"]
[null,null,"• Автоматическое отключение питания"]
[null,null,"• Защитное электрическое разделение цепей"]
[null,null,"• Сверхнизкое напряжение"]
[null,null,"• Двойная изоляция_"]
[null,null,"• Любая из перечисленных мер защиты, в зависимости от категории помещения по  уровню опасности поражения людей электрическим током","Правильный_ответ"]
[null,null,"323.  Какие виды инструктажа проводятся с оперативным и оперативно-ремонтным персоналом?"]
[null,null,"• Вводный и целевой (при необходимости) инструктажи по охране труда_"]
[null,null,"• Вводный, первичный на рабочем месте, повторный, внеплановый и целевой  инструктажи по охране труда, а также инструктаж по пожарной безопасности","Правильный_ответ"]
[null,null,"• Вводный, первичный на рабочем месте, повторный, внеплановый и целевой инструктажи по охране труда"]
[]
[]
[null,null,"324.  В каких случаях проводится внеочередная проверка знаний?"]
[null,null,"• При нарушении работниками требований нормативных актов по охране труда_"]
[null,null,"• При переводе работника на новую должность (для рабочих - на новое рабочее место)"]
[null,null,"• При перерыве в работе в данной должности более 6 месяцев"]
[null,null,"• В любом из перечисленных случаев ","Правильный_ответ"]
[]
[null,null,"325.  Каким образом производится присоединение заземляющих проводников к заземлителю и заземляющим конструкциям?"]
[null,null,"• Сваркой ","Правильный_ответ"]
[null,null,"• Болтовым соединением_"]
[null,null,"• Резьбовым соединением"]
[null,null,"• Фланцевым соединением"]
[]
[null,null,"326.  Необходима запись о допуске на подготовленное рабочее место в оперативном журнале согласно Правилам по охране труда при эксплуатации электроустановок?"]
[null,null,"• Да ","Правильный_ответ"]
[null,null,"• Нет_"]
[null,null,"• Правилами не оговорено"]
[]
[]
[null,null,"327.  Какую группу по электробезопасности должны иметь работники из числа оперативного персонала, единолично обслуживающие электроустановки напряжением доЮООВ?"]
[null,null,"• Группу не ниже III ","Правильный_ответ"]
[null,null,"• Группу IV"]
[null,null,"• Группу II или III"]
[]
[]
[null,null,"328.  Светильники, какого класса защиты, согласно Правилам устройства электроустановок, необходимо применять (за исключением светильников, обслуживаемых с кранов) в помещениях с повышенной опасностью и особо опасных помещениях при высоте установки светильников общего освещения над полом или площадкой обслуживания менее 2,5 м при условии, что цепь не защищена устройством защитного отключения?"]
[null,null,"• Класса защиты 0 или 1_"]
[null,null,"• Класса защиты 2 или 3 ","Правильный_ответ"]
[null,null,"• Только класса защиты О"]
[null,null,"• Только класса защиты 3"]
[]
[null,null,"329.  Что является определением термина «Усиленная изоляция»?"]
[null,null,"• Независимая изоляция в электроустановках напряжением до 1 кВ, выполняемая дополнительно к основной изоляции для защиты при косвенном прикосновении_"]
[null,null,"• Изоляция в электроустановках напряжением до 1 кВ. обеспечивающая степень защиты  от поражения электрическим током, равноценная двойной изоляции","Правильный_ответ"]
[null,null,"• Изоляция в электроустановках напряжением до 1 кВ, состоящая из основной и дополнительной изоляции"]
[]
[]
[null,null,"330. . Какое минимальное расстояние, согласно Правилам устройства электроустановок, должно быть от места установки ВУ, ВРУ, ГРЩ до трубопроводов (водопровод, отопление, канализация, внутренние водостоки)?"]
[null,null,"• Расстояние не менее 0;5 м_"]
[null,null,"• Расстояние не менее 1,0 м ","Правильный_ответ"]
[null,null,"• Расстояние не менее 2,0 м"]
[null,null,"• Расстояние не менее 3,5 м"]
[]
[null,null,"331.  Какое максимальное количество силовых кабелей, при прокладке в земле, рекомендуется прокладывать в траншее?"]
[null,null,"• 6 силовых кабелей ","Правильный_ответ"]
[null,null,"• 8 силовых кабелей"]
[null,null,"• 10 силовых кабелей"]
[]
[]
[null,null,"332.  Что, согласно Правилам устройства электроустановок, называется групповой сетью?"]
[null,null,"• Сеть от распределительного устройства подстанции или ответвления от воздушных линий электропередачи до ВУ, ВРУ, ГРЩ"]
[null,null,"• Сеть от ВУ ВРУ ГРЩ до распределительных пунктов, щитков и пунктов питания наружного освещения"]
[null,null,"• Сеть от щитков до светильников, штепсельных розеток и других электроприемников","Правильный_ответ"]
[null,null,"• Система, осуществляющая последовательное включение (отключение) участков групповой сети наружного освещения"]
[]
[null,null,"333.  Каким образом работник при непосредственном использовании может определить, что электрозащитные средства прошли эксплуатационные испытания и пригодны для применения?"]
[null,null,"• По протоколам эксплуатационных испытаний"]
[null,null,"• По записи в Журнале испытаний средств защиты"]
[null,null,"• По штампу или маркировке на средстве защиты ","Правильный_ответ"]
[null,null,"• По внешнему виду средств защиты"]
[]
[null,null,"334.  За что отвечает допускающий?"]
[null,null,"• За достаточность и правильность указанных в наряд- допуске_"]
[null,null,"• За правильность и достаточность принятых им мер безопасности по подготовке рабочих мест и соответствие их мероприятиям, указанным в наряде или распоряжении, характеру и месту работы, за правильный допуск к работе, а также за полноту и качество проводимого им целевого инструктажа","Правильный_ответ"]
[null,null,"• За возможность безопасного осуществления отключения, включения и заземления оборудования, находящегося в его управлении"]
[]
[]
[null,null,"335.  Каким образом фиксируются результаты проверки знаний?"]
[null,null,"• Формируется приказ_"]
[null,null,"• Оформляется протоколом проверки знаний и удостоверением и фиксируется в журнале у учета проверки знаний","Правильный_ответ"]
[null,null,"• Формируется акт о проведении и получении соответствующих результатов работников"]
[null,null,"• Только удостоверением"]
[]
[null,null,"336.  Какой персонал не проходит подготовку по новой должности (рабочему месту)?"]
[null,null,"• Диспетчерский персонал"]
[null,null,"• Оперативный персонал_"]
[null,null,"• Оперативно-ремонтный персонал"]
[null,null,"• Ремонтный персонал"]
[null,null,"• Административно-технический персонал","Правильный_ответ"]
[null,null,"337.  В каком из перечисленных случаев допускается выдавать один наряд-допуск для одновременного или поочередного выполнения работ на разных рабочих местах одной электроустановки?"]
[null,null,"• Только при прокладке и перекладке силовых и контрольных кабелей, испытаниях х электрооборудования, проверке устройств защиты, измерений, блокировки, электроавтоматики, телемеханики, связи"]
[null,null,"• Только при ремонте отдельного кабеля в туннеле, коллекторе, колодце, траншее, котловане"]
[null,null,"• Только при ремонте коммутационных аппаратов одного присоединения, в том числе когда их приводы находятся в другом помещении"]
[null,null,"• Во всех перечисленных случаях ","Правильный_ответ"]
[]
[null,null,"338.  Кто имеет право проводить обслуживание аккумуляторных батарей и зарядных устройств?"]
[null,null,"• Специально обученный персонал, имеющий II группу по электробезопасности_"]
[null,null,"• Любой работник из числа электротехнического персонала, имеющий III группу по электробезопасности"]
[null,null,"• Специально обученный персонал, имеющий III группу по электробезопасности","Правильный_ответ"]
[]
[]
[null,null,"339.  С какой периодичностью производится проверка работоспособности систем оповещения людей о пожаре?"]
[null,null,"• Не реже 1 раза в месяц_"]
[null,null,"• Это должны делать ответственные за пожарную безопасность в организации каждые 6 месяцев"]
[null,null,"• Не реже 1 раза в квартал ","Правильный_ответ"]
[null,null,"• Не реже 1 раза в год"]
[]
[null,null,"340. . Укажите последовательность действий по оценке обстановки и обеспечению безопасных условий для оказания первой помощи (приказ Минздрава России от 04.05.2012 N 477н)."]
[null,null,"• 1) Определение угрожающих факторов для жизни и здоровья пострадавшего; 2) устранение угрожающих факторов для жизни и здоровья; 3) вызов скорой медицинской помощи; 4) прекращение действия повреждающих факторов на пострадавшего; 5) оценка количества пострадавших"]
[null,null,"• 1) Определение угрожающих факторов для собственной жизни и здоровья; 2) определение у угрожающих факторов для жизни и здоровья пострадавшего; 3) устранение угрожающих факторов для жизни и здоровья; 4) прекращение действия повреждающих факторов на пострадавшего; 5) оценка количества пострадавших; 6) извлечение пострадавшего из транспортного средства или других труднодоступных мест; 7) перемещение пострадавшего_","Правильный_ответ"]
[null,null,"• 1) Вызов скорой медицинской помощи; 2) других специальных служб, сотрудники х которых обязаны оказывать первую помощь в соответствии с федеральным законом   или со специальным правилом; 3) устранение угрожающих факторов для жизни и здоровья; 4) прекращение действия повреждающих факторов на пострадавшего; 5) оценка количества пострадавших; 6) извлечение пострадавшего из транспортного средства или других труднодоступных мест"]